{"text_format":"1","workbook":"xlsx","n_sheets":9,"sheets":["PORTADA","INSTRUCCIONES","INFORMACION ATEL","INFORMACIÓN GENERAL","ANÁLISIS PARTICIPATIVO","CONSOLIDADO ANÁLISIS","PONDERACIONES","PLAN DE ACCIÓN","FORMATO DE CAMPO"],"not_rendered":{"charts":17,"images":9,"macros":1,"external_links":5,"defined_names":32,"comments":0,"pivot_tables":1},"unopened":[],"bounds":{"document_bytes":16777216,"sheet_cells":100000,"rows_first":2000,"rows_last":500,"rows_between":2000,"halvings":0,"cell_chars":16384,"cell_head_chars":4096},"cells_cut":0,"cells_raw":0,"read":"whole","date_system":"1900"}

{"sheet":"PORTADA","index":0,"n_rows":0,"n_cols":0,"rows_kept":0,"cut":false,"hidden":false,"merged":[]}

{"sheet":"INSTRUCCIONES","index":1,"n_rows":26,"n_cols":8,"rows_kept":26,"cut":false,"hidden":false,"merged":[[25,1,25,8],[14,6,15,6],[14,7,15,7],[17,1,17,8],[19,1,19,8],[21,1,21,8],[23,1,23,8],[1,0,1,8],[2,2,2,7],[3,1,3,8],[4,2,4,7],[5,0,17,0],[5,1,5,8],[6,1,6,8],[8,3,8,6],[11,1,11,8],[13,2,13,7]]}
[]
["Herramienta de Evaluación Profunda\nInstrucciones"]
[]
["Metodología","Visita a las instalaciones, aplicación de la  herramienta de evaluación profunda con la participación de los trabajadores (preferiblemente expertos, aunque también es posible la participación de los no expertos y llegar a consenso entre los dos),  jefes de enfermería  y responsables del área de SST."]
[]
["Paso a paso","Tras informar al Director, Coordinador o Encargado SST las actividades que deben ser objeto de la Evaluación Profunda, gestione la programación de nuevas visitas de al menos seis a ocho horas por cada tarea a evaluar y teniendo en cuenta los actores que deben convocarse con anterioridad. \n\nInforme al Director, Coordinador o Encargado SST, que se realizará la aplicación de la herramienta EVALUACIÓN PROFUNDA DE LA PROBLEMÁTICA POR MMP, bajo el siguiente orden:\n\n• Observación y conocimiento de la tarea en detalle, realizando registros de video (si la institución lo permite) y consultando información con los trabajadores y el supervisor\n• Aplicación de la herramienta a trabajadores en un espacio donde pueda sostenerse la entrevista sin interrupciones o influencia de supervisores o jefes de enfermería\n• Aplicación de la herramienta únicamente con el  jefe de enfermería\n• Aplicación de la herramienta únicamente con el responsable del área de SST\n• Consolidación de la información\n\nPrograme una reunión de  2 horas con los diferentes actores invitados para socializar las opiniones sobre las tareas críticas  y definir las estrategias de intervención a considerar, que deben traducirse en un plan de trabajo formal.\n\nPara la aplicación de la herramienta EVALUACIÓN PROFUNDA DE LA PROBLEMÁTICA POR MMP puede imprimir el Formato de campo desde el archivo Excel correspondiente, aunque lo mejor es diligenciar la información directamente en la versión Excel para optimizar el tiempo.\n\nDiligencie la información general de la Empresa,  Razón Social, el NIT,  fecha de aplicación de la herramienta, la dirección y teléfono principal, así como el municipio."]
[null,"\n\nDescriba en detalle y de manera cronológica la tarea crítica por MMP y, registre un video o tome  fotografías que soporten dicha descripción.\n\nContinúe con el análisis participativo entrevistando a cada uno de los actores por separado, preferiblemente en un espacio sin distracciones y siguiendo el orden de los actores que relaciona el formato, es decir, primero los trabajadores, luego supervisores y jefes y posteriormente responsables del diseño y mejoramiento del proceso\n\nEn su momento explique a cada uno de ellos el enfoque participativo de la evaluación, fundamentado en las determinantes del sistema de trabajo organizacional, humano, tecnológico y ambiental, citando ejemplos acerca de lo que abarca cada uno de estos aspectos y su importancia.\n\nAplique con cada uno de ellos la herramienta, teniendo en cuenta revisar cada una de las variables estimadas en cada determinante, registrando su opinión respecto a la frecuencia de ocurrencia de cada una de ellas, según la ponderación del correspondiente formato, sea en términos cualitativos o cuantitativos (horas o porcentajes de exposición). \n\nTenga en cuenta que las valoraciones cualitativas corresponden a las variables de las determinantes Organizacional y Humana, con las siguientes opciones de selección:"]
[]
[null,null,null,"Valoraciones cualitativas"]
[null,null,null,"Sí, siempre","Parcialmente","No, nunca","No aplica"]
[]
[null,"\nLas valoraciones cuantitativas corresponden a las variables de las determinantes Tecnológica y Ambiental, las siguientes opciones\n"]
[]
[null,null,"Valoraciones cuantitativas"]
[null,null,">=7 horas",">=4 y < 7 horas",">=2 y < 4 horas","< 2 horas","No, nunca","No aplica"]
[null,null,">90% del tiempo","50% a 89% del tiempo","25% a 49% del tiempo","1% a 24% del tiempo"]
[]
[null,"Recuerde registrar observaciones y conclusiones alusivas a cada variable si la respuesta de alguno de los actores lo amerita, así como describir las posibles estrategias de intervención sugeridas.\n\n\nEn el momento que exponga cada variable a evaluar si lo requiere, fundamente su discurso, para facilitar la comprensión de los participantes.\n\nCulmine la aplicación de la herramienta respondiendo bajo su concepto de evaluador cada una de las variables y formulando sus respectivas conclusiones y recomendaciones, en la columna denominada \"Estrategias de intervención sugeridas por especialista\", teniendo en cuenta la información obtenida en campo y las respuestas de los demás actores.\n\nSi realizó el registro de datos en formatos físicos, digitalice toda la información en el archivo Excel EVALUACIÓN PROFUNDA DE LA PROBLEMÁTICA POR MMP, recuerde que en primera instancia solo deberá diligenciar las pestañas de Información general de la actividad y Análisis participativo.\n\nSocialice la información obtenida con la aplicación de la herramienta mediante reunión con los diferentes actores participantes. Inicialmente presente los resultados conforme a la pestaña llamada Consolidado Análisis, lo cual permitirá reconocer las tendencias en cuanto a las opiniones referidas por los actores y definir las determinantes del sistema de trabajo (Organizacional, Humana, Tecnológica o Ambiental) desde las cuales se requiere mayor gestión en intervención. Recuerde que en esta herramienta se describen diferentes estrategias de intervención que pueden entrarse a evaluar.\n\nContinúe la socialización presentando las conclusiones y propuestas más relevantes de la pestaña de Análisis participativo, estimando en consenso las estrategias de mayor viabilidad que estarían al alcance de la empresa. Diligencie esta información en la columna del formato digital denominada estrategias de intervención avaladas para plan de acción y cuando termine, pase a la pestaña Plan de acción, donde debe seguir las indicaciones allí descritas para que se configure el formato con las estrategias estimadas como viables y pueda definirse para cada una de ellas Responsable, Cargo, Área, fecha de implementación y seguimiento, estado de implementación y observaciones.\n\nPreferiblemente imprima el plan de trabajo y hágalo firmar por los actores de la tarea y la Gerencia."]
[]
["Actores Invitados y roles","Trabajadores, supervisores o jefes: Suministrarán información verídica sobre las condiciones de trabajo y estarán atentos a corroborar cualquier dato, así como formular ideas de posibilidades de mejoramiento según se vaya aplicando la herramienta.\n\nResponsable del diseño y mejoramiento del proceso donde se evalúa la tarea: Suministrará información verídica sobre las condiciones de trabajo, estará atento a corroborar cualquier dato, formulará ideas de posibilidades de mejoramiento y determinará las estrategias de intervención viables a implementar para ser plasmadas en el correspondiente plan de acción y liderará la ejecución de este último.\n\nDirector, Coordinador o Encargado SST: Informará a trabajadores, supervisores y directores de área, sobre  la ejecución y alcance de la Evaluación profunda, facilitará el acceso del evaluador a las áreas que se requieran y la comunicación con los actores invitados, estará atento a corroborar cualquier dato, así como formular ideas de posibilidades de mejoramiento y auditará el cumplimiento del plan de acción dentro de las fechas pactadas"]
[]
["Tiempo requerido","6 a 8 horas en campo, 4 horas de informe. Total 10 a 12 horas"]
[]
["Recursos","Papelería, Cámara digital, Flexómetro, Elementos de protección personal, computador, sala de reuniones, video beam."]
[]
["Profesional asignado","Profesional especialista en salud ocupacional, entrenado en la aplicación de las herramientas y preferiblemente con experiencia en ergonomía "]

{"sheet":"INFORMACION ATEL","index":2,"n_rows":161,"n_cols":20,"rows_kept":161,"cut":false,"hidden":false,"merged":[[0,0,0,20],[1,0,1,20],[3,0,3,20],[5,0,5,2],[5,3,5,10],[5,12,5,13],[5,14,5,15],[5,17,5,18],[5,19,5,20],[13,0,13,2],[13,3,13,20],[15,0,15,20],[18,0,19,0],[18,1,18,2],[18,3,18,4],[18,5,18,7],[19,6,19,7],[7,0,7,2],[7,3,7,20],[9,0,9,2],[9,3,9,20],[11,0,11,2],[11,3,11,10],[11,12,11,13],[11,14,11,15],[11,17,11,18],[11,19,11,20],[45,1,45,4],[50,0,50,20],[52,2,52,6],[52,7,52,9],[52,10,52,12],[52,13,52,14],[52,15,52,18],[20,6,20,7],[29,0,35,0],[29,1,30,1],[29,2,29,3],[29,4,29,5],[43,0,43,20],[55,7,55,9],[55,10,55,12],[55,13,55,14],[57,0,57,20],[60,0,60,1],[61,0,61,1],[53,2,53,6],[53,7,53,9],[53,10,53,12],[53,13,53,14],[53,15,55,18],[54,2,54,6],[54,7,54,9],[54,10,54,12],[54,13,54,14],[55,2,55,6],[62,0,62,1],[63,0,63,1],[64,0,64,1],[73,6,73,8],[74,0,76,0],[74,1,74,2],[74,6,74,8],[75,1,75,2],[75,6,75,8],[76,1,76,2],[76,6,76,8],[85,1,85,2],[85,6,85,8],[86,0,94,0],[86,1,86,2],[86,6,86,8],[87,1,87,2],[87,6,87,8],[88,1,88,2],[88,6,88,8],[92,1,92,2],[92,6,92,8],[93,1,93,2],[93,6,93,8],[94,1,94,2],[94,6,94,8],[89,1,89,2],[89,6,89,8],[90,1,90,2],[90,6,90,8],[91,1,91,2],[91,6,91,8],[96,1,96,2],[96,6,96,8],[97,0,105,0],[97,1,97,2],[97,6,97,8],[98,1,98,2],[98,6,98,8],[99,1,99,2],[99,6,99,8],[100,1,100,2],[104,1,104,2],[104,6,104,8],[105,1,105,2],[105,6,105,8],[108,0,108,20],[112,0,112,1],[100,6,100,8],[101,1,101,2],[101,6,101,8],[102,1,102,2],[102,6,102,8],[103,1,103,2],[103,6,103,8],[113,0,113,1],[114,0,114,1],[115,0,115,1],[116,0,116,1],[126,6,126,8],[127,0,129,0],[127,1,127,2],[127,6,127,8],[128,1,128,2],[128,6,128,8],[129,1,129,2],[129,6,129,8],[138,1,138,2],[138,6,138,8],[139,0,147,0],[139,1,139,2],[139,6,139,8],[140,1,140,2],[140,6,140,8],[141,1,141,2],[145,1,145,2],[145,6,145,8],[146,1,146,2],[146,6,146,8],[147,1,147,2],[147,6,147,8],[141,6,141,8],[142,1,142,2],[142,6,142,8],[143,1,143,2],[143,6,143,8],[144,1,144,2],[144,6,144,8],[160,0,160,20],[162,0,162,20],[154,1,154,2],[154,6,154,8],[155,1,155,2],[155,6,155,8],[156,1,156,2],[156,6,156,8],[149,6,149,8],[150,0,158,0],[150,1,150,2],[150,6,150,8],[151,1,151,2],[151,6,151,8],[152,1,152,2],[152,6,152,8],[153,1,153,2],[153,6,153,8],[157,1,157,2],[157,6,157,8],[158,1,158,2],[158,6,158,8]]}
[]
["Herramienta de Evaluación Profunda\nRegistro de Información ATEL"]
[]
["INFORMACIÓN GENERAL DE LA EMPRESA"]
[]
["Razón Social",null,null,null,null,null,null,null,null,null,null,null,"NIT",null,null,null,null,"Fecha de diligenciamiento",null,"2016-04-17"]
[]
["Actividad económica",null,null,"SERVICIOS DE SALUD DE CUARTO NIVEL "]
[]
["Problemática de movilización manual de pacientes en la empresa",null,null,"El área de seguridad y salud en el trabajo  identifica al área de enfermería compuesta por enfermeras jefe y auxiliares de enfermería, como la  población con mayor presencia de alteraciones a nivel músculo esquelético; Dicha población se caracteriza por estar expuesta a múltiples factores de riesgo generadores de DME, debido a las características de la actividad, condiciones de trabajo y otros aspectos relacionados a los individuos"]
[]
["Dirección",null,null,null,null,null,null,null,null,null,null,null,"Teléfonos",null,null,null,null,"Municipio"]
[]
["Observaciones",null,null,"Para el desarrollo de la intervención y observación se identifica que el área de hospitalización y Urgencias son las que presentan mayor criticidad por MMP , de manera que se toman los pisos 5,6,8 y el area de urgencias con el fin de ifdentificar la problemática. "]
[]
["INFORMACIÓN GENERAL DE LOS TRABAJADORES"]
[]
[]
["No. total de trabajadores en la empresa","Total trabajadores expuestos a peligros por MMP",null,"Mujeres expuestas a peligros por MMP",null,"Hombres expuestos a peligros por MMP"]
[null,"No.","Porcentaje vs total de la empresa","No.","Porcentaje vs total de expuestos","No.","Porcentaje vs total de expuestos"]
[2699,370,{"$f":"B21*100%/A21","v":0.13708781030011116},320,{"$f":"D21*100%/B21","v":0.86486486486486491},50,{"$f":"F21*100%/B21","v":0.13513513513513514}]
[1]
[]
[]
[]
[]
[]
[]
[]
["Edad población expuesta","Rango","Mujeres",null,"Hombres"]
[null,null,"No.","Porcentaje","No.","Porcentaje"]
[null,"18 a 25",85,{"$f":"C32*100%/D21","v":0.265625},15,{"$f":"E32*100%/F21","v":0.3}]
[null,"26 a 35",153,{"$f":"C33*100%/D21","v":0.47812500000000002},21,{"$f":"E33*100%/F21","v":0.42}]
[null,"36 a 45",68,{"$f":"C34*100%/D21","v":0.21249999999999999},9,{"$f":"E34*100%/F21","v":0.18}]
[null,"46 a 55",14,{"$f":"C35*100%/D21","v":4.3749999999999997E-2},4,{"$f":"E35*100%/F21","v":0.08}]
[null,"56 o más",null,{"$f":"C36*100%/D21","v":0},1,{"$f":"E36*100%/F21","v":0.02}]
[]
[]
[]
[]
[]
[]
[]
["INFORMACIÓN GENERAL SOBRE LA FORMA DE CONTRATACIÓN"]
[]
[null,"Trabajadores expuestos a MMP"]
[null,"Directos","Porcentaje","Contratistas","Porcentaje"]
[null,370,{"$f":"B48*100%/B21","v":1},null,{"$f":"D48*100%/B21","v":0}]
[]
[]
["INFORMACIÓN BÁSICA SOBRE SEGURIDAD Y SALUD EN EL TRABAJO"]
[]
[null,null,"Presencia de los siguientes registros/ documentos",null,null,null,null,"Actualización dentro de  los últimos 12 meses",null,null,"Calidad  de la información de los registros para el Dx. Inicial",null,null,"Calificación parcial   calidad de la información de los registros",null,"Calificación calidad de la información de los registros"]
[null,null,"Identificación de peligros, evaluación y valoración de riesgos",null,null,null,null,"SI",null,null,"Suficiente",null,null,{"$f":"IF(K54=\"Suficiente\",\"0,1\",IF(K54=\"Regular\",\"0,5\",IF(K54=\"Sin información\",\"1\")))","v":"0,1"},null,{"$f":"N54+N55+N56","v":0.7}]
[null,null,"Caracterización de la accidentalidad por sobresfuerzos y falsos movimientos relacionados con MMP",null,null,null,null,"SI",null,null,"Suficiente",null,null,{"$f":"IF(K55=\"Suficiente\",\"0,1\",IF(K55=\"Regular\",\"0,5\",IF(K55=\"Sin información\",\"1\")))","v":"0,1"}]
[null,null,"Caracterización por desórdenes músculo esqueléticos DME",null,null,null,null,"SI",null,null,"Regular",null,null,{"$f":"IF(K56=\"Suficiente\",\"0,1\",IF(K56=\"Regular\",\"0,5\",IF(K56=\"Sin información\",\"1\")))","v":"0,5"}]
[]
["ANÁLISIS DE ACCIDENTALIDAD POR SOBRESFUERZOS Y FALSOS MOVIMIENTOS RELACIONADOS CON MMP"]
[]
[null,null,"AÑO 2014","AÑO 2015","AÑO 2016","TOTAL"]
["Total de accidentes",null,305,277,240,{"$f":"SUM(C61:E61)","v":822}]
["Días perdidos por total de accidentes",null,336,458,320,{"$f":"SUM(C62:E62)","v":1114}]
["Accidentes por sobresfuerzos relacionados con MMP",null,44,31,14,{"$f":"SUM(C63:E63)","v":89}]
["Días perdidos tras accidentes por  sobresfuerzos relacionados con MMP",null,71,100,32,{"$f":"SUM(C64:E64)","v":203}]
["Porcentaje accidentes por sobresfuerzos relacionados con MMP vs el total",null,{"$f":"C63*100%/C61","v":0.14426229508196722},{"$f":"D63*100%/D61","v":0.11191335740072202},{"$f":"E63*100%/E61","v":5.8333333333333334E-2}]
[]
[]
[]
[]
[]
[]
[]
[]
[null,null,null,"AÑO 2014","AÑO 2015","AÑO 2016","TOTAL",null,null,"Porcentaje"]
["Número de accidentes de trabajo por sobresfuerzo relacionados con MMP que comprometieron lesiones en segmentos corporales","Miembros superiores",null,14,8,4,{"$f":"SUM(D75:F75)","v":26},null,null,{"$f":"G75*100%/F63","v":0.29213483146067415}]
[null,"Columna",null,28,28,10,{"$f":"SUM(D76:F76)","v":66},null,null,{"$f":"G76*100%/F63","v":0.7415730337078652}]
[null,"Miembros inferiores",null,0,0,0,{"$f":"SUM(D77:F77)","v":0},null,null,{"$f":"G77*100%/F63","v":0}]
[]
[]
[]
[]
[]
[]
[]
[]
[null,"Àrea",null,"AÑO 2014","AÑO 2015","AÑO 2016","TOTAL",null,null,"%"]
["No. de accidentes por sobresfuerzos relacionados con MMP","Hospitalizacion",null,16,11,4,{"$f":"SUM(D87:F87)","v":31},null,null,{"$f":"G87*100%/F63","v":0.34831460674157305}]
[null,"Farmacia",null,1,1,null,{"$f":"SUM(D88:F88)","v":2},null,null,{"$f":"G88*100%/F63","v":2.247191011235955E-2}]
[null,"Rehabilitacion",null,1,null,null,1,null,null,{"$f":"G89*100%/F63","v":1.1235955056179775E-2}]
[null,"Sala de cirugias",null,2,null,null,2,null,null,{"$f":"G90*100%/F63","v":2.247191011235955E-2}]
[null,"Sala de partos",null,2,null,null,2,null,null,{"$f":"G91*100%/F63","v":2.247191011235955E-2}]
[null,"Quirofanos",null,1,1,null,2,null,null,{"$f":"G92*100%/F63","v":2.247191011235955E-2}]
[null,"UCI",null,1,6,2,9,null,null,{"$f":"G93*100%/F63","v":0.10112359550561797}]
[null,"Unidad de extension hospitalaria",null,1,null,4,5,null,null,{"$f":"G94*100%/F63","v":5.6179775280898875E-2}]
[null,"urgencias",null,5,11,4,20,null,null,{"$f":"G95*100%/F63","v":0.2247191011235955}]
[]
[null,"Área",null,"AÑO 2014","AÑO 2015","AÑO 2016","TOTAL"]
["No. Días perdidos accidentes por MMP","Hospitalizacion",null,27,26,9,{"$f":"SUM(D98:F98)","v":62}]
[null,"Farmacia",null,2,2,null,{"$f":"SUM(D99:F99)","v":4}]
[null,"Rehabilitacion",null,2,null,null,2]
[null,"Sala de cirugias",null,2,3,null,5]
[null,"Sala de partos",null,8,null,null,8]
[null,"UCI",null,5,28,null,33]
[null,"Unidad de extension hospitalaria",null,3,null,5,8]
[null,"urgencias",null,11,30,19,60]
[null,null,null,null,null,null,0]
[]
[]
["REGISTRO DE DESÓRDENES MÚSCULO ESQUELÉTICOS EN ÁREAS  CRÍTICAS POR EXPOSICIÓN A MMP"]
[]
[]
[null,null,"AÑO 2014","AÑO 2015","AÑO 2016","TOTAL"]
["No. de trabajadores con sintomatología Músculo Esquelética",null,null,null,49,{"$f":"SUM(C113:E113)","v":49}]
["Desórdenes Músculo Esqueléticos de origen común",null,null,null,26,{"$f":"SUM(C114:E114)","v":26}]
["Desórdenes Músculo Esqueléticos de origen laboral",null,null,null,7,{"$f":"SUM(C115:E115)","v":7}]
["Total Desórdenes Músculo Esqueléticos",null,{"$f":"SUM(C114:C115)","v":0},{"$f":"SUM(D114:D115)","v":0},{"$f":"SUM(E114:E115)","v":33},{"$f":"SUM(C116:E116)","v":33}]
["Días perdidos por Desórdenes Músculo Esqueléticos",null,null,null,null,{"$f":"SUM(C117:E117)","v":0}]
[]
[]
[]
[]
[]
[]
[]
[]
[]
[null,null,null,"AÑO 2014","AÑO 2015","AÑO 2016","TOTAL",null,null,"Porcentaje"]
["Total de Desórdenes Músculo Esqueléticos de cualquier origen","Miembros superiores",null,null,12,8,{"$f":"SUM(D128:F128)","v":20},null,null,{"$f":"G128*100%/F116","v":0.60606060606060608}]
[null,"Columna",null,null,21,11,{"$f":"SUM(D129:F129)","v":32},null,null,{"$f":"G129*100%/F116","v":0.96969696969696972}]
[null,"Miembros inferiores",null,null,null,null,{"$f":"SUM(D130:F130)","v":0},null,null,{"$f":"G130*100%/F116","v":0}]
[]
[]
[]
[]
[]
[]
[]
[]
[null,"Área",null,"AÑO 2014","AÑO 2015","AÑO 2016","TOTAL",null,null,"%"]
["Número de Desórdenes Músculo Esqueléticos",null,null,null,null,null,{"$f":"SUM(D140:F140)","v":0},null,null,{"$f":"G140*100%/F116","v":0}]
[null,null,null,null,null,null,{"$f":"SUM(D141:F141)","v":0},null,null,{"$f":"G141*100%/F116","v":0}]
[null,null,null,null,null,null,0,null,null,{"$f":"G142*100%/F116","v":0}]
[null,null,null,null,null,null,0,null,null,{"$f":"G143*100%/F116","v":0}]
[null,null,null,null,null,null,0,null,null,{"$f":"G144*100%/F116","v":0}]
[null,null,null,null,null,null,0,null,null,{"$f":"G145*100%/F116","v":0}]
[null,null,null,null,null,null,0,null,null,{"$f":"G146*100%/F116","v":0}]
[null,null,null,null,null,null,0,null,null,{"$f":"G147*100%/F116","v":0}]
[null,null,null,null,null,null,0,null,null,{"$f":"G148*100%/F116","v":0}]
[]
[null,null,null,"AÑO 2014","AÑO 2015","AÑO 2016","TOTAL"]
["Número de días perdidos por Desórdenes Músculo Esqueléticos",null,null,null,null,null,{"$f":"SUM(D151:F151)","v":0}]
[null,null,null,null,null,null,{"$f":"SUM(D152:F152)","v":0}]
[null,null,null,null,null,null,0]
[null,null,null,null,null,null,0]
[null,null,null,null,null,null,0]
[null,null,null,null,null,null,0]
[null,null,null,null,null,null,0]
[null,null,null,null,null,null,0]
[null,null,null,null,null,null,0]
[]
["CONCLUSIONES"]

{"sheet":"INFORMACIÓN GENERAL","index":3,"n_rows":16,"n_cols":31,"rows_kept":16,"cut":false,"hidden":false,"merged":[[43,0,43,7],[43,9,43,21],[43,23,43,33],[39,0,39,7],[39,9,39,21],[39,23,39,33],[40,0,40,33],[41,0,42,7],[41,9,42,21],[41,23,42,33],[35,0,35,7],[35,9,35,21],[35,23,35,33],[36,0,36,33],[37,0,38,7],[37,9,38,21],[37,23,38,33],[31,0,31,7],[31,9,31,21],[31,23,31,33],[32,0,32,33],[33,0,34,7],[33,9,34,21],[33,23,34,33],[27,0,27,7],[27,9,27,21],[27,23,27,33],[29,0,30,7],[29,9,30,21],[29,23,30,33],[23,0,23,7],[23,9,23,21],[23,23,23,33],[24,0,24,33],[25,0,26,7],[25,9,26,21],[25,23,26,33],[19,0,19,7],[19,9,19,21],[19,23,19,33],[20,0,20,33],[21,0,22,7],[21,9,22,21],[21,23,22,33],[9,32,9,33],[11,0,11,33],[12,0,13,33],[15,0,15,33],[17,0,18,7],[17,9,18,21],[17,23,18,33],[9,0,9,3],[9,4,9,7],[9,10,9,14],[9,16,9,20],[9,21,9,28],[9,30,9,31],[5,0,5,33],[5,35,5,38],[7,0,7,3],[7,4,7,12],[7,14,7,20],[7,21,7,33],[0,0,0,33],[1,0,1,33],[3,0,3,3],[3,27,3,30],[3,31,3,33],[3,4,3,25]]}
[]
["Herramienta de Evaluación Profunda\nRegistro de Información General"]
[]
["Razón Social",null,null,null,null,null,null,null,null,null,null,null,null,null,null,null,null,null,null,null,null,null,null,null,null,null,null,"Fecha de evaluación"]
[]
["INFORMACIÓN GENERAL DE LA TAREA CRÍTICA A EVALUAR"]
[]
["Nombre de la tarea crítica por  movilización manual de pacientes",null,null,null,null,null,null,null,null,null,null,null,null,null,"Nombre del proceso crítico"]
[]
["Apellidos y nombres del trabajador que supervisa la tarea crítica",null,null,null,null,null,null,null,null,"Cargo",null,null,null,null,null,null,"Apellidos y nombres del trabajador responsable de diseño y mejoramiento de procesos",null,null,null,null,null,null,null,null,null,null,null,null,null,"Cargo"]
[]
["Descripción de la tarea crítica por movilización manual de pacientes"]
["El proceso de trabajo para la auxiliar de enfermería, consiste en proveer cuidado personal al conjunto de pacientes que se atienden en el piso o servicio, la atención está centrada en dar apoyo en tareas de movilización de los usuarios dentro del piso y la habitación asignada. El cuidado al paciente se realiza desde el momento que ingresa al servicio lo que implica acciones como:\n\n• Registro de notas para el área de enfermería\n\n• Toma de signos vitales \n\n• Movilización del paciente dentro del área ( habitación , baño)\n\n• Baño y asistencia en cuidados básicos del paciente (cambio de ropa, cambio de pañales, asistencia en labores de higiene mayor y menor, alimentación, etc)\n\n• Curaciones y cambios de posición\n\n• Cambio de tendido en las camas\n"]
[]
[]
["Material fotográfico e imágenes de la tarea crítica"]

{"sheet":"ANÁLISIS PARTICIPATIVO","index":4,"n_rows":54,"n_cols":45,"rows_kept":54,"cut":false,"hidden":false,"merged":[[3,43,3,44],[1,0,1,44],[3,23,3,32],[3,33,3,40],[43,0,53,0],[27,0,42,0],[6,3,6,11],[8,0,23,0],[24,0,25,0],[7,4,7,6],[7,13,7,15],[7,22,7,24],[7,31,7,33],[8,4,8,6],[8,13,8,15],[8,22,8,24],[0,0,0,40],[3,0,3,2],[3,3,3,18],[6,12,6,20],[6,21,6,29],[5,30,6,38],[5,3,5,29],[8,31,8,33],[9,4,9,6],[9,13,9,15],[9,22,9,24],[9,31,9,33],[10,4,10,6],[10,13,10,15],[10,22,10,24],[10,31,10,33],[11,4,11,6],[11,13,11,15],[11,22,11,24],[11,31,11,33],[12,4,12,6],[12,13,12,15],[12,22,12,24],[12,31,12,33],[13,4,13,6],[13,13,13,15],[13,22,13,24],[13,31,13,33],[14,4,14,6],[14,13,14,15],[14,22,14,24],[14,31,14,33],[15,4,15,6],[15,13,15,15],[15,22,15,24],[15,31,15,33],[16,4,16,6],[16,13,16,15],[16,22,16,24],[16,31,16,33],[17,4,17,6],[17,13,17,15],[17,22,17,24],[17,31,17,33],[18,4,18,6],[18,13,18,15],[18,22,18,24],[18,31,18,33],[19,4,19,6],[19,13,19,15],[19,22,19,24],[19,31,19,33],[20,4,20,6],[20,13,20,15],[20,22,20,24],[20,31,20,33],[21,4,21,6],[21,13,21,15],[21,22,21,24],[21,31,21,33],[22,4,22,6],[22,13,22,15],[22,22,22,24],[22,31,22,33],[25,4,25,6],[25,13,25,15],[25,22,25,24],[25,31,25,33],[23,4,23,6],[23,13,23,15],[23,22,23,24],[23,31,23,33],[24,4,24,6],[24,13,24,15],[24,22,24,24],[24,31,24,33]]}
[]
["Herramienta de Evaluación Profunda\nAnálisis Participativo"]
[]
[{"$f":"'INFORMACIÓN GENERAL'!A4:D4","v":"Razón Social"},null,null,{"$f":"'INFORMACIÓN GENERAL'!E4","v":0},null,null,null,null,null,null,null,null,null,null,null,null,null,null,null,null,null,null,null,{"$f":"'INFORMACIÓN GENERAL'!A8","v":"Nombre de la tarea crítica por  movilización manual de pacientes"},null,null,null,null,null,null,null,null,null,{"$f":"'INFORMACIÓN GENERAL'!E8","v":0},null,null,null,null,null,null,null,null,{"$f":"'INFORMACIÓN GENERAL'!O8","v":"Nombre del proceso crítico"},{"$f":"'INFORMACIÓN GENERAL'!V8","v":0}]
[]
[null,null,null,"ACTORES DE LA TAREA",null,null,null,null,null,null,null,null,null,null,null,null,null,null,null,null,null,null,null,null,null,null,null,null,null,null,"ESPECIALISTA EN ERGONOMÍA"]
[null,null,null,"TRABAJADOR EXPERTO",null,null,null,null,null,null,null,null,"SUPERVISOR O JEFE",null,null,null,null,null,null,null,null,"RESPONSABLE DISEÑO Y MEJORAMIENTO DEL PROCESO"]
[null,null,"VARIABLES A EVALUAR","Sí, siempre","Parcialmente",null,null,null,null,"No, nunca",null,"No aplica","Sí, siempre","Parcialmente",null,null,null,null,"No, nunca",null,"No aplica","Sí, siempre","Parcialmente",null,null,null,null,"No, nunca",null,"No aplica","Sí, siempre","Parcialmente",null,null,null,null,"No, nunca",null,"No aplica","TOTAL","PRIORIDAD DE LA INTERVENCIÓN SEGÚN CALIFICACIÓN","OBSERVACIONES Y CONCLUSIONES","ESTRATEGIAS DE INTERVENCIÓN SUGERIDAS POR ACTORES DE LA TAREA","ESTRATEGIAS DE INTERVENCIÓN SUGERIDAS POR ESPECIALISTA EN ERGONOMÍA","ESTRATEGIAS DE INTERVENCIÓN AVALADAS PARA PLAN DE ACCIÓN"]
["DETERMINANTE ORGANIZACIONAL",1,"Hay una política de Seguridad y Salud en el trabajo, que se ve reflejada en la asignación de recursos para las intervenciones dirigidas a mitigar la problemática por MMP",null,null,null,null,{"$f":"IF(D9=0,\"0\",IF(D9=\"X\",\"1\"))","v":"0"},{"$f":"IF(E9=0,\"0\",IF(E9=\"X\",\"2\"))","v":"0"},"X",{"$f":"IF(J9=0,\"0\",IF(J9=\"X\",\"3\"))","v":"3"},null,null,"X",null,null,{"$f":"IF(M9=0,\"0\",IF(M9=\"X\",\"1\"))","v":"0"},{"$f":"IF(N9=0,\"0\",IF(N9=\"X\",\"2\"))","v":"2"},null,{"$f":"IF(S9=0,\"0\",IF(S9=\"X\",\"3\"))","v":"0"},null,null,"X",null,null,{"$f":"IF(V9=0,\"0\",IF(V9=\"X\",\"1\"))","v":"0"},{"$f":"IF(W9=0,\"0\",IF(W9=\"X\",\"2\"))","v":"2"},null,{"$f":"IF(AB9=0,\"0\",IF(AB9=\"X\",\"3\"))","v":"0"},null,null,null,null,null,{"$f":"IF(AE9=0,\"0\",IF(AE9=\"X\",\"1\"))","v":"0"},{"$f":"IF(AF9=0,\"0\",IF(AF9=\"X\",\"2\"))","v":"0"},"X",{"$f":"IF(AK9=0,\"0\",IF(AK9=\"X\",\"3\"))","v":"3"},null,{"$f":"H9+I9+K9+Q9+R9+T9+Z9+AA9+AC9+AI9+AJ9+AL9","v":10},{"$f":"IF(AN9<=4,\"BAJA\",IF(AN9<=8,\"MEDIA\",IF(AN9<=11,\"ALTA\",IF(AN9<=12,\"MUY ALTA\",))))","v":"ALTA"}]
[null,2,"Se mantiene actualizada (últimos 6 meses) la información para la vigilancia de las condiciones de salud músculo esquelética de los trabajadores  expuestos y de las condiciones de trabajo en donde se ejecutan tareas de MMP",null,"X",null,null,{"$f":"IF(D10=0,\"0\",IF(D10=\"X\",\"1\"))","v":"0"},{"$f":"IF(E10=0,\"0\",IF(E10=\"X\",\"2\"))","v":"2"},null,{"$f":"IF(J10=0,\"0\",IF(J10=\"X\",\"3\"))","v":"0"},null,null,"X",null,null,{"$f":"IF(M10=0,\"0\",IF(M10=\"X\",\"1\"))","v":"0"},{"$f":"IF(N10=0,\"0\",IF(N10=\"X\",\"2\"))","v":"2"},null,{"$f":"IF(S10=0,\"0\",IF(S10=\"X\",\"3\"))","v":"0"},null,null,"X",null,null,{"$f":"IF(V10=0,\"0\",IF(V10=\"X\",\"1\"))","v":"0"},{"$f":"IF(W10=0,\"0\",IF(W10=\"X\",\"2\"))","v":"2"},null,{"$f":"IF(AB10=0,\"0\",IF(AB10=\"X\",\"3\"))","v":"0"},null,null,"X",null,null,{"$f":"IF(AE10=0,\"0\",IF(AE10=\"X\",\"1\"))","v":"0"},{"$f":"IF(AF10=0,\"0\",IF(AF10=\"X\",\"2\"))","v":"2"},null,{"$f":"IF(AK10=0,\"0\",IF(AK10=\"X\",\"3\"))","v":"0"},null,{"$f":"H10+I10+K10+Q10+R10+T10+Z10+AA10+AC10+AI10+AJ10+AL10","v":8},{"$f":"IF(AN10<=4,\"BAJA\",IF(AN10<=8,\"MEDIA\",IF(AN10<=11,\"ALTA\",IF(AN10<=12,\"MUY ALTA\",))))","v":"MEDIA"}]
[null,3,"Se realizan exámenes médicos ocupacionales con énfasis en evaluación clínica de los desórdenes músculo esqueléticos de columna, miembros superiores e inferiores.",null,"X",null,null,"0","2",null,"0",null,null,"X",null,null,"0","2",null,"0",null,null,"X",null,null,"0","2",null,"0",null,null,"X",null,null,"0","2",null,"0",null,8,"MEDIA"]
[null,4,"Se realizan evaluaciones de las cualidades físicas (fuerza, flexibilidad, resistencia cardiovascular) ",null,null,null,null,"0","0","X","3",null,null,null,null,null,"0","0","X","3",null,null,null,null,null,"0","0","X","3",null,null,null,null,null,"0","0","X","3",null,12,"MUY ALTA"]
[null,5,"La  asignación de enfermeras (auxiliares y jefes)  en la unidad o piso es suficiente y/o se ajusta al numero de pacientes, teniendo en cuenta las características funcionales y necesidad de asistencia que requieren los pacientes",null,null,null,null,"0","0","X","3",null,null,null,null,null,"0","0","X","3",null,null,"X",null,null,"0","2",null,"0",null,null,null,null,null,"0","0","X","3",null,11,"ALTA"]
[null,6,"La asignación de pacientes permite la alternancia en la atención de usuarios con limitaciones funcionales elevadas y usuarios  funcionales que no demandan asistencia para su movilización, permitiendo la recuperación física de los expuestos.\n\n",null,"X",null,null,"0","2",null,"0",null,null,"X",null,null,"0","2",null,"0",null,null,"X",null,null,"0","2",null,"0",null,null,"X",null,null,"0","2",null,"0",null,8,"MEDIA"]
[null,7,"\n\nExiste planeación para suministrar y utilizar, prioritaria y equitativamente las ayudas mecánicas (camillas, sillas de ruedas, grúas, rollos de movilización) en el piso o unidad",null,null,null,null,"0","0","X","3",null,null,null,null,null,"0","0","X","3",null,null,null,null,null,"0","0","X","3",null,null,null,null,null,"0","0","X","3",null,12,"MUY ALTA"]
[null,8,"Existe un programa de mantenimiento predictivo y/o preventivo que garantice el  adecuado  funcionamiento de las ayudas mecánicas",null,null,null,null,"0","0","X","3",null,null,null,null,null,"0","0","X","3",null,null,null,null,null,"0","0","X","3",null,null,null,null,null,"0","0","X","3",null,12,"MUY ALTA"]
[null,9,"Se documentan requerimientos ergonómicos en los procedimientos de selección y adquisición de ayudas mecánicas (camas, sillas de ruedas, camillas, rollos de movilización), teniendo en cuenta las necesidades de movilización de pacientes con diferentes caracteristicas de funcionalidad e independencia.",null,null,null,null,"0","0","X","3",null,null,null,null,null,"0","0","X","3",null,null,null,null,null,"0","0","X","3",null,null,null,null,null,"0","0","X","3",null,12,"MUY ALTA"]
[null,10,"Existen procedimientos para estimar  las necesidades de ayudas mecánicas y trabajo en equipo durante la movilización de pacientes",null,null,null,null,"0","0","X","3",null,null,null,null,null,"0","0","X","3",null,null,null,null,null,"0","0","X","3",null,null,null,null,null,"0","0","X","3",null,12,"MUY ALTA"]
[null,11,"Los  jefes de área (unidad o piso) conocen los procedimientos seguros para la  MMP y velan por su cumplimiento",null,null,null,null,"0","0","X","3",null,null,"X",null,null,"0","2",null,"0",null,null,"X",null,null,"0","2",null,"0",null,null,"X",null,null,"0","2",null,"0",null,9,"ALTA"]
[null,12," La asignación del número de pacientes por enfermera, permite la colaboración  entre  el grupo de trabajo asignado al piso o unidad",null,"X",null,null,"0","2",null,"0",null,null,"X",null,null,"0","2",null,"0",null,null,"X",null,null,"0","2",null,"0",null,null,"X",null,null,"0","2",null,"0",null,8,"MEDIA"]
[null,13,"La tarea es ejecutada por personal de contratación directa","X",null,null,null,"1","0",null,"0",null,"X",null,null,null,"1","0",null,"0",null,"X",null,null,null,"1","0",null,"0",null,"X",null,null,null,"1","0",null,"0",null,4,"BAJA"]
[null,14,"Se implementa un programa de formación en prevención de DME y AT por MMP",null,null,null,null,"0","0","X","3",null,null,null,null,null,"0","0","X","3",null,null,"X",null,null,"0","2",null,"0",null,null,null,null,null,"0","0","X","3",null,11,"ALTA"]
[null,15,"Se cuenta con un perfil ocupacional específico para la  selección de la población que realiza atención de pacientes que requieren asistencia (transferencia, movilización, baño, vestido, etc)",null,null,null,null,"0","0","X","3",null,null,null,null,null,"0","0","X","3",null,null,null,null,null,"0","0","X","3",null,null,null,null,null,"0","0","X","3",null,12,"MUY ALTA"]
[null,16,"Las mujeres en estado de embarazo ejecutan actividades con ausencia o muy baja exigencia de MMP",null,"X",null,null,"0","2",null,"0",null,null,"X",null,null,"0","2",null,"0",null,null,"X",null,null,"0","2",null,"0",null,"X",null,null,null,"1","0",null,"0",null,7,"MEDIA"]
["DETERMINANTE HUMANA",17,"Los trabajadores demuestran estar entrenados y poseer conocimiento suficiente para desempeñar de forma segura la MMP",null,"X",null,null,"0","2",null,"0",null,null,"X",null,null,"0","2",null,"0",null,null,"X",null,null,"0","2",null,"0",null,null,null,null,null,"0","0","X","3",null,9,"ALTA"]
[null,18,"Se evidencia la planificación y trabajo en equipo  entre el personal  del piso o Unidad para realizar tareas de MMP","X",null,null,null,"1","0",null,"0",null,"X",null,null,null,"1","0",null,"0",null,"X",null,null,null,"1","0",null,"0",null,"X",null,null,null,"1","0",null,"0",null,4,"BAJA"]
[null,null,null," =o>7 horas\n>90% del tiempo"," >=4 y < 7 horas\n50% a 89% del tiempo"," >=2 y < 4 horas\n25% a 49% del tiempo"," < 2 horas\n1% a 24% del tiempo",null,null,"No, nunca",null,"No aplica"," =o>7 horas\n>90% del tiempo"," >=4 y < 7 horas\n50% a 89% del tiempo"," >=2 y < 4 horas\n25% a 49% del tiempo"," < 2 horas\n1% a 24% del tiempo",null,null,"No, nunca",null,"No aplica"," =o>7 horas\n>90% del tiempo"," >=4 y < 7 horas\n50% a 89% del tiempo"," >=2 y < 4 horas\n25% a 49% del tiempo"," < 2 horas\n1% a 24% del tiempo",null,null,"No, nunca",null,"No aplica"," =o>7 horas\n>90% del tiempo"," >=4 y < 7 horas\n50% a 89% del tiempo"," >=2 y < 4 horas\n25% a 49% del tiempo"," < 2 horas\n1% a 24% del tiempo",null,null,"No, nunca",null,"No aplica","TOTAL"]
["DETERMINANTE TECNOLÓGICA",21,"Las ayudas mecánicas para la MMP ( sillas de ruedas, sillas pato,  camillas) asignadas al piso o Unidad son suficientes para los requerimientos que se tienen",null,null,null,null,{"$f":"IF(F28=0,\"0\",IF(F28=\"X\",\"1\"))","v":"0"},{"$f":"IF(G28=0,\"0\",IF(G28=\"X\",\"2\"))","v":"0"},"X",{"$f":"IF(J28=0,\"0\",IF(J28=\"X\",\"3\"))","v":"3"},null,null,null,null,null,{"$f":"IF(O28=0,\"0\",IF(O28=\"X\",\"1\"))","v":"0"},{"$f":"IF(P28=0,\"0\",IF(P28=\"X\",\"2\"))","v":"0"},"X",{"$f":"IF(S28=0,\"0\",IF(S28=\"X\",\"3\"))","v":"3"},null,null,null,null,null,{"$f":"IF(X28=0,\"0\",IF(X28=\"X\",\"1\"))","v":"0"},{"$f":"IF(Y28=0,\"0\",IF(Y28=\"X\",\"2\"))","v":"0"},"X",{"$f":"IF(AB28=0,\"0\",IF(AB28=\"X\",\"3\"))","v":"3"},null,null,null,null,null,{"$f":"IF(AG28=0,\"0\",IF(AG28=\"X\",\"1\"))","v":"0"},{"$f":"IF(AH28=0,\"0\",IF(AH28=\"X\",\"2\"))","v":"0"},"X",{"$f":"IF(AK28=0,\"0\",IF(AK28=\"X\",\"3\"))","v":"3"},null,12,"MUY ALTA"]
[null,22,"Las camas y  camillas presentan sistemas de regulación que permiten al personal adaptar la altura durante la MMP ",null,null,"X",null,"1","0",null,"0",null,null,null,"X",null,"1","0",null,"0",null,null,null,"X",null,"1","0",null,"0",null,null,null,"X",null,"1","0",null,"0",null,4,"BAJA"]
[null,23,"Las camas y camillas tienen dispositivos mecánicos en buen estado  que permiten regular la inclinación de la cabecera según la necesidad del paciente y  conveniencia del personal",null,null,null,"X","0","2",null,"0",null,null,null,null,"X","0","2",null,"0",null,null,null,null,"X","0","2",null,"0",null,null,null,null,"X","0","2",null,"0",null,8,"MEDIA"]
[null,24,"La ubicación de la cama en las habitaciones permite espacio suficiente para que el personal pueda ubicarse correctamente, evitar giros de tronco >45° y  permite el movimiento del cuerpo en bloque",null,null,null,null,"0","0","X","3",null,null,null,null,null,"0","0","X","3",null,null,null,null,"X","0","2",null,"0",null,null,null,null,null,"0","0","X","3",null,11,"ALTA"]
[null,25,"La  dimensión de camas y camillas  permiten la adecuada alineación postural de la columna y miembros superiores  durante la movilización y asistencia al paciente ","X",null,null,null,"0","0",null,"0",null,"X",null,null,null,"0","0",null,"0",null,"X",null,null,null,"0","0",null,"0",null,"X",null,null,null,"0","0",null,"0",null,0,"BAJA"]
[null,26,"Las barandas de las camas y  camillas se pueden retirar o ajustar con el fin de facilitar la movilización y transferencia del paciente. ",null,null,null,"X","0","2",null,"0",null,null,null,null,"X","0","2",null,"0",null,null,null,null,"X","0","2",null,"0",null,null,null,null,"X","0","2",null,"0",null,8,"MEDIA"]
[null,27,"Existen dispositivos o mecanismos (agarraderas suspendidas al techo, botones para inclinar la cama, subir o baja barandas) para que los pacientes puedan ayudarse durante su movilización y transferencia",null,null,null,"X","0","2",null,"0",null,null,null,null,"X","0","2",null,"0",null,null,null,null,"X","0","2",null,"0",null,null,null,null,"X","0","2",null,"0",null,8,"MEDIA"]
[null,28,"La camas y camillas son fáciles de empujar  y ubicar según las características locativas del área",null,null,null,"X","0","2",null,"0",null,null,null,null,"X","0","2",null,"0",null,null,null,null,"X","0","2",null,"0",null,null,null,null,"X","0","2",null,"0",null,8,"MEDIA"]
[null,29,"La sillas de ruedas  (o sillas pato) son fáciles de empujar y ubicar según las características físicas y espacios del área ",null,null,null,null,"0","0","X","3",null,null,null,null,null,"0","0","X","3",null,null,null,null,null,"0","0","X","3",null,null,null,null,null,"0","0","X","3",null,12,"MUY ALTA"]
[null,30,"La dimensión (ancho) de las  sillas de ruedas  o sillas pato  permiten que el  paciente se siente o levante fácilmente",null,null,null,"X","0","2",null,"0",null,null,null,null,"X","0","2",null,"0",null,null,null,null,"X","0","2",null,"0",null,null,null,null,null,"0","0","X","3",null,9,"ALTA"]
[null,31,"La silla de ruedas permite retirar o desarmar los apoyapiés y otros dispositivos como correas de ajuste, con el fin de permitir el ingreso adecuado del personal que realiza la MMP",null,null,null,"X","0","2",null,"0",null,null,null,null,"X","0","2",null,"0",null,null,null,null,"X","0","2",null,"0",null,null,null,null,"X","0","2",null,"0",null,8,"MEDIA"]
[null,32,"Cuentan con grúas para el levantamiento de pacientes con necesidades especiales y dependientes para movilizarse",null,null,null,null,"0","0","X","3",null,null,null,null,null,"0","0","X","3",null,null,null,null,null,"0","0","X","3",null,null,null,null,null,"0","0","X","3",null,12,"MUY ALTA"]
[null,33,"Las grúas de levantamiento  presentan tamaños acordes con los espacios físicos de las instalaciones y sistemas de ajustabilidad horizontal y vertical , facilitando la maniobrabilidad y ubicación del paciente",null,null,null,null,"0","0",null,"0","X",null,null,null,null,"0","0",null,"0","X",null,null,null,null,"0","0",null,"0","X",null,null,null,null,"0","0",null,"0","X",0,"BAJA"]
[null,34,"Las ayudas mecánicas rodantes (camas,  sillas pato) tienen agarraderas ergonomicas que permitan empujarlas facilmente",null,null,null,"X","0","2",null,"0",null,null,null,null,null,"0","0","X","3",null,null,null,null,"X","0","2",null,"0",null,null,null,null,null,"0","0","X","3",null,10,"ALTA"]
[null,36,"El piso o Unidad cuenta con suficientes rodillos y tablas para la  movilización de pacientes ",null,null,null,null,"0","0","X","3",null,null,null,null,null,"0","0","X","3",null,null,null,null,"X","0","2",null,"0",null,null,null,null,null,"0","0","X","3",null,11,"ALTA"]
[null,37,"\n\nLos sistemas de ajustabilidad y freno de las ayudas mecánicas se encuentran en adecuado estado de mantenimiento\n",null,null,null,null,"0","0","X","3",null,null,null,null,null,"0","0","X","3",null,null,null,null,"X","0","2",null,"0",null,null,null,null,null,"0","0","X","3",null,11,"ALTA"]
["DETERMINANTE AMBIENTAL",39,"Los espacios físicos (corredores, salas de imágenes diagnosticas, etc.)  donde se realiza la MMP con uso de ayudas mecánicas son amplios y libres de obstáculos",null,null,null,"X","0","2",null,"0",null,null,null,null,"X","0","2",null,"0",null,null,null,"X",null,"1","0",null,"0",null,null,null,null,"X","0","2",null,"0",null,7,"MEDIA"]
[null,40,"Los baños (duchas, inodoros y lavamanos)  permiten el ingreso fácil del paciente cuando esta siendo movilizado en la silla pato , así como de otros aditamentos (caminador)",null,null,null,"X","0","2",null,"0",null,null,null,null,"X","0","2",null,"0",null,null,null,null,"X","0","2",null,"0",null,null,null,null,"X","0","2",null,"0",null,8,"MEDIA"]
[null,41,"Los baños (duchas, inodoro ,lavamanos)  cuentan con elementos de asimiento (barras) que les permite agarrarse y apoyarse, facilitando la MMP",null,null,null,"X","0","2",null,"0",null,null,null,null,"X","0","2",null,"0",null,null,null,null,"X","0","2",null,"0",null,null,null,null,"X","0","2",null,"0",null,8,"MEDIA"]
[null,42,"El diámetro de las puertas permite la accesibilidad adecuada de las ayudas mecánicas ( grúa, cama, silla de ruedas, camilla)",null,null,null,"X","0","2",null,"0",null,null,null,null,"X","0","2",null,"0",null,null,null,null,"X","0","2",null,"0",null,null,null,null,"X","0","2",null,"0",null,8,"MEDIA"]
[null,43,"La altura de los inodoros cuenta con la medida ergonómica recomendada (55 cm), en beneficio de la accesibilidad durante la MMP","X",null,null,null,"0","0",null,"0",null,"X",null,null,null,"0","0",null,"0",null,"X",null,null,null,"0","0",null,"0",null,"X",null,null,null,"0","0",null,"0",null,0,"BAJA"]
[null,44,"Las duchas son móviles y cuentan con bandeja o silla para sentar al paciente.",null,null,null,"X","0","2",null,"0",null,null,null,null,"X","0","2",null,"0",null,null,null,null,"X","0","2",null,"0",null,null,null,null,"X","0","2",null,"0",null,8,"MEDIA"]
[null,45,"Los pisos de los baños donde se realiza la asistencia a los pacientes son antideslizantes, sin cambios de nivel y   permite realizar la MMP bajo condiciones de seguridad. ",null,null,null,"X","0","2",null,"0",null,null,null,null,"X","0","2",null,"0",null,null,null,null,null,"0","0","X","3",null,null,null,null,null,"0","0","X","3",null,10,"ALTA"]
[null,46,"Los pisos de las instalaciones físicas de los diferentes unidades son antideslizantes , sin cambios de nivel y permite realizar la MMP bajo condiciones de seguridad","X",null,null,null,"0","0",null,"0",null,"X",null,null,null,"0","0",null,"0",null,"X",null,null,null,"0","0",null,"0",null,null,null,"X",null,"1","0",null,"0",null,1,"BAJA"]
[null,47,"Los espacios que necesariamente presentan cambios de nivel (entrada y salida a ascensores, rampas)  se mantienen debidamente demarcados, libres de obstáculos, con anchos y largos suficientes, así como pendientes que responden a la fórmula (desnivel x 100 / 10%)",null,null,"X",null,"1","0",null,"0",null,null,"X",null,null,"0","0",null,"0",null,"X",null,null,null,"0","0",null,"0",null,null,null,"X",null,"1","0",null,"0",null,2,"BAJA"]
[null,48,"La altura de las sillas de estar o descanso  donde se sientan los pacientes cuentan con la medida ergonómica recomendada (55 cms)",null,null,null,"X","0","2",null,"0",null,null,null,null,"X","0","2",null,"0",null,null,null,null,"X","0","2",null,"0",null,null,null,null,null,"0","0","X","3",null,9,"ALTA"]
[null,49,"Las condiciones de iluminación general favorecen la visibilidad durante la MMP","X",null,null,null,"0","0",null,"0",null,"X",null,null,null,"0","0",null,"0",null,"X",null,null,null,{"$f":"IF(X54=0,\"0\",IF(X54=\"X\",\"1\"))","v":"0"},{"$f":"IF(Y54=0,\"0\",IF(Y54=\"X\",\"2\"))","v":"0"},null,"0",null,"X",null,null,null,{"$f":"IF(AG54=0,\"0\",IF(AG54=\"X\",\"1\"))","v":"0"},{"$f":"IF(AH54=0,\"0\",IF(AH54=\"X\",\"2\"))","v":"0"},null,"0",null,0,"BAJA"]

{"sheet":"CONSOLIDADO ANÁLISIS","index":5,"n_rows":223,"n_cols":23,"rows_kept":223,"cut":false,"hidden":false,"merged":[[51,3,52,3],[51,4,52,7],[135,0,135,23],[141,14,141,17],[141,18,141,21],[141,22,141,23],[140,14,140,17],[140,18,140,21],[140,22,140,23],[55,0,55,2],[53,4,53,7],[54,4,54,7],[55,4,55,7],[137,8,137,13],[138,3,139,3],[138,4,139,7],[138,10,138,11],[138,12,139,12],[138,13,139,13],[138,14,139,17],[138,18,139,21],[138,22,139,23],[53,0,53,2],[54,0,54,2],[3,18,3,23],[0,0,0,23],[1,0,1,23],[5,0,5,23],[3,0,3,1],[3,15,3,17],[10,22,10,23],[3,8,3,9],[3,10,3,13],[3,2,3,6],[10,4,10,7],[10,0,10,2],[7,8,7,13],[8,12,9,12],[8,13,9,13],[8,10,8,11],[10,10,10,11],[10,18,10,21],[10,14,10,17],[11,10,11,11],[12,10,12,11],[13,10,13,11],[8,4,9,7],[8,3,9,3],[8,14,9,17],[8,18,9,21],[8,22,9,23],[50,8,50,13],[12,22,12,23],[13,22,13,23],[11,18,11,21],[12,18,12,21],[13,18,13,21],[13,14,13,17],[11,14,11,17],[12,14,12,17],[11,22,11,23],[48,0,48,23],[11,0,11,2],[12,0,12,2],[13,0,13,2],[11,4,11,7],[12,4,12,7],[13,4,13,7],[51,10,51,11],[51,12,52,12],[51,13,52,13],[51,14,52,17],[51,18,52,21],[51,22,52,23],[53,10,53,11],[54,10,54,11],[55,10,55,11],[53,14,53,17],[53,18,53,21],[55,14,55,17],[55,18,55,21],[55,22,55,23],[53,22,53,23],[54,14,54,17],[54,18,54,21],[54,22,54,23],[56,0,56,2],[56,4,56,7],[56,10,56,11],[56,14,56,17],[56,18,56,21],[56,22,56,23],[91,0,91,23],[93,8,93,13],[94,3,95,3],[94,4,95,7],[94,10,94,11],[94,12,95,12],[94,13,95,13],[94,14,95,17],[94,18,95,21],[94,22,95,23],[96,0,96,2],[96,4,96,7],[96,10,96,11],[96,14,96,17],[96,18,96,21],[96,22,96,23],[97,0,97,2],[97,4,97,7],[97,10,97,11],[97,14,97,17],[97,18,97,21],[97,22,97,23],[98,0,98,2],[98,4,98,7],[98,10,98,11],[98,14,98,17],[98,18,98,21],[98,22,98,23],[99,0,99,2],[99,4,99,7],[99,10,99,11],[99,14,99,17],[99,18,99,21],[99,22,99,23],[140,0,140,2],[140,4,140,7],[140,10,140,11],[141,0,141,2],[141,4,141,7],[141,10,141,11],[142,0,142,2],[142,4,142,7],[142,10,142,11],[223,0,225,23],[142,14,142,17],[142,18,142,21],[142,22,142,23],[143,0,143,2],[143,4,143,7],[143,10,143,11],[143,14,143,17],[143,18,143,21],[143,22,143,23],[186,3,186,8],[222,0,222,23],[181,9,181,12],[183,3,183,8],[184,3,184,8],[185,3,185,8],[179,0,179,23]]}
[]
["Herramienta de Evaluación Profunda\nConsolidado Análisis"]
[]
[{"$f":"'INFORMACIÓN GENERAL'!A4","v":"Razón Social"},null,{"$f":"'INFORMACIÓN GENERAL'!E4","v":0},null,null,null,null,null,{"$f":"'INFORMACIÓN GENERAL'!A8","v":"Nombre de la tarea crítica por  movilización manual de pacientes"},null,{"$f":"'INFORMACIÓN GENERAL'!E8:M8","v":0},null,null,null,null,{"$f":"'INFORMACIÓN GENERAL'!O8","v":"Nombre del proceso crítico"},null,null,{"$f":"'INFORMACIÓN GENERAL'!V8","v":0}]
[]
["CONSOLIDADO OPINIÓN TRABAJADOR(ES) EXPERTO(S)"]
[]
[null,null,null,null,null,null,null,null,"OPINIÓN SOBRE PRESENCIA Y/O FRECUENCIA DE OCURRENCIA DE LAS VARIABLES EVALUADAS"]
[null,null,null,"No. DE VARIABLES EVALUADAS","% IMPORTANCIA ASIGNADO POR DETERMINANTE",null,null,null,"SÍ, siempre",null,"Parcialmente",null,"No, nunca","No aplica","SUMA DE VARIABLES QUE OCURREN SIEMPRE O MÁS DEL 50% O, NO APLICAN",null,null,null,"% GESTIÓN DE INTERVENCIÓN SEGÚN  % DE IMPORTANCIA ASIGNADO POR DETERMINANTE",null,null,null,"%GESTIÓN DE INTERVENCIÓN GENERAL POR DETERMINANTE"]
[null,null,null,null,null,null,null,null," =o>7 horas\n>90% del tiempo"," >=4 y < 7 horas\n50% a 89% del tiempo"," >=2 y < 4 horas\n25% a 49% del tiempo"," < 2 horas\n1% a 24% del tiempo"]
["DETERMINANTE ORGANIZACIONAL",null,null,16,30,null,null,null,{"$f":"COUNTIF('ANÁLISIS PARTICIPATIVO'!D9:D24,\"X\")","v":1},0,{"$f":"COUNTIF('ANÁLISIS PARTICIPATIVO'!E9:E24,\"X\")","v":5},null,{"$f":"COUNTIF('ANÁLISIS PARTICIPATIVO'!J9:J24,\"X\")","v":10},{"$f":"COUNTIF('ANÁLISIS PARTICIPATIVO'!L9:L24,\"X\")","v":0},{"$f":"SUM(I11:J11)","v":1},null,null,null,{"$f":"E11/D11*O11/100","v":1.8749999999999999E-2},null,null,null,{"$f":"O11*100%/D11","v":6.25E-2}]
["DETERMINANTE HUMANA",null,null,2,10,null,null,null,{"$f":"COUNTIF('ANÁLISIS PARTICIPATIVO'!D25:D26,\"X\")","v":1},0,{"$f":"COUNTIF('ANÁLISIS PARTICIPATIVO'!E25:E26,\"X\")","v":1},null,{"$f":"COUNTIF('ANÁLISIS PARTICIPATIVO'!J25:J26,\"X\")","v":0},{"$f":"COUNTIF('ANÁLISIS PARTICIPATIVO'!L25:L26,\"X\")","v":0},{"$f":"SUM(I12:J12)","v":1},null,null,null,{"$f":"E12/D12*O12/100","v":0.05},null,null,null,{"$f":"O12*100%/D12","v":0.5}]
["DETERMINANTE TECNOLÓGICA",null,null,{"$f":"COUNT('ANÁLISIS PARTICIPATIVO'!B28:B43)","v":16},30,null,null,null,{"$f":"COUNTIF('ANÁLISIS PARTICIPATIVO'!D28:D43,\"X\")","v":1},{"$f":"COUNTIF('ANÁLISIS PARTICIPATIVO'!E28:E43,\"X\")","v":0},{"$f":"COUNTIF('ANÁLISIS PARTICIPATIVO'!F28:F43,\"X\")+COUNTIF('ANÁLISIS PARTICIPATIVO'!G28:G43,\"X\")","v":8},null,{"$f":"COUNTIF('ANÁLISIS PARTICIPATIVO'!J28:J43,\"X\")","v":6},{"$f":"COUNTIF('ANÁLISIS PARTICIPATIVO'!L28:L43,\"X\")","v":1},{"$f":"SUM(I13:J13)","v":1},null,null,null,{"$f":"E13/D13*O13/100","v":1.8749999999999999E-2},null,null,null,{"$f":"O13*100%/D13","v":6.25E-2}]
["DETERMINANTE AMBIENTAL",null,null,{"$f":"COUNT('ANÁLISIS PARTICIPATIVO'!B44:B54)","v":11},30,null,null,null,{"$f":"COUNTIF('ANÁLISIS PARTICIPATIVO'!D44:D54,\"X\")","v":3},{"$f":"COUNTIF('ANÁLISIS PARTICIPATIVO'!E44:E54,\"X\")","v":0},{"$f":"COUNTIF('ANÁLISIS PARTICIPATIVO'!F44:F54,\"X\")+COUNTIF('ANÁLISIS PARTICIPATIVO'!G44:G54,\"X\")","v":8},null,{"$f":"COUNTIF('ANÁLISIS PARTICIPATIVO'!J44:J54,\"X\")","v":0},{"$f":"COUNTIF('ANÁLISIS PARTICIPATIVO'!L44:L54,\"X\")","v":0},{"$f":"SUM(I14:J14)","v":3},null,null,null,{"$f":"E14/D14*O14/100","v":8.1818181818181818E-2},null,null,null,{"$f":"O14*100%/D14","v":0.27272727272727271}]
[]
[]
[]
[]
[]
[]
[]
[]
[]
[]
[]
[]
[]
[]
[]
[]
[]
[]
[]
[]
[]
[]
[]
[]
[]
[]
[]
[]
[]
[]
[]
[]
[]
[]
["CONSOLIDADO OPINIÓN JEFE O SUPERVISOR"]
[]
[null,null,null,null,null,null,null,null,"OPINIÓN SOBRE PRESENCIA Y/O FRECUENCIA DE OCURRENCIA DE LAS VARIABLES EVALUADAS"]
[null,null,null,"No. DE VARIABLES EVALUADAS","% IMPORTANCIA ASIGNADO POR DETERMINANTE",null,null,null,"SÍ, siempre",null,"Parcialmente",null,"No, nunca","No aplica","SUMA DE VARIABLES QUE OCURREN SIEMPRE O MÁS DEL 50% O, NO APLICAN",null,null,null,"% GESTIÓN DE INTERVENCIÓN SEGÚN  % DE IMPORTANCIA ASIGNADO POR DETERMINANTE",null,null,null,"%GESTIÓN DE INTERVENCIÓN GENERAL POR DETERMINANTE"]
[null,null,null,null,null,null,null,null," =o>7 horas\n>90% del tiempo"," >=4 y < 7 horas\n50% a 89% del tiempo"," >=2 y < 4 horas\n25% a 49% del tiempo"," < 2 horas\n1% a 24% del tiempo"]
["DETERMINANTE ORGANIZACIONAL",null,null,16,{"$f":"E11","v":30},null,null,null,{"$f":"COUNTIF('ANÁLISIS PARTICIPATIVO'!M9:M24,\"X\")","v":1},0,{"$f":"COUNTIF('ANÁLISIS PARTICIPATIVO'!N9:N24,\"X\")","v":7},null,{"$f":"COUNTIF('ANÁLISIS PARTICIPATIVO'!S9:S24,\"X\")","v":8},{"$f":"COUNTIF('ANÁLISIS PARTICIPATIVO'!U9:U24,\"X\")","v":0},{"$f":"SUM(I54:J54)","v":1},null,null,null,{"$f":"E54/D54*O54/100","v":1.8749999999999999E-2},null,null,null,{"$f":"O54*100%/D54","v":6.25E-2}]
["DETERMINANTE HUMANA",null,null,2,{"$f":"E12","v":10},null,null,null,{"$f":"COUNTIF('ANÁLISIS PARTICIPATIVO'!M25:M26,\"X\")","v":1},0,{"$f":"COUNTIF('ANÁLISIS PARTICIPATIVO'!N25:N26,\"X\")","v":1},null,{"$f":"COUNTIF('ANÁLISIS PARTICIPATIVO'!S25:S26,\"X\")","v":0},{"$f":"COUNTIF('ANÁLISIS PARTICIPATIVO'!U25:U26,\"X\")","v":0},{"$f":"SUM(I55:J55)","v":1},null,null,null,{"$f":"E55/D55*O55/100","v":0.05},null,null,null,{"$f":"O55*100%/D55","v":0.5}]
["DETERMINANTE TECNOLÓGICA",null,null,20,{"$f":"E13","v":30},null,null,null,{"$f":"COUNTIF('ANÁLISIS PARTICIPATIVO'!M28:M43,\"X\")","v":1},{"$f":"COUNTIF('ANÁLISIS PARTICIPATIVO'!N28:N43,\"X\")","v":0},{"$f":"COUNTIF('ANÁLISIS PARTICIPATIVO'!O28:O43,\"X\")+COUNTIF('ANÁLISIS PARTICIPATIVO'!P28:P43,\"X\")","v":7},null,{"$f":"COUNTIF('ANÁLISIS PARTICIPATIVO'!S28:S43,\"X\")","v":7},{"$f":"COUNTIF('ANÁLISIS PARTICIPATIVO'!U28:U43,\"X\")","v":1},{"$f":"SUM(I56:J56)","v":1},null,null,null,{"$f":"E56/D56*O56/100","v":1.4999999999999999E-2},null,null,null,{"$f":"O56*100%/D56","v":0.05}]
["DETERMINANTE AMBIENTAL",null,null,11,{"$f":"E14","v":30},null,null,null,{"$f":"COUNTIF('ANÁLISIS PARTICIPATIVO'!M44:M54,\"X\")","v":3},{"$f":"COUNTIF('ANÁLISIS PARTICIPATIVO'!N44:N54,\"X\")","v":1},{"$f":"COUNTIF('ANÁLISIS PARTICIPATIVO'!O44:O54,\"X\")+COUNTIF('ANÁLISIS PARTICIPATIVO'!P44:P54,\"X\")","v":7},null,{"$f":"COUNTIF('ANÁLISIS PARTICIPATIVO'!S44:S54,\"X\")","v":0},{"$f":"COUNTIF('ANÁLISIS PARTICIPATIVO'!U44:U54,\"X\")","v":0},{"$f":"SUM(I57:J57)","v":4},null,null,null,{"$f":"E57/D57*O57/100","v":0.10909090909090909},null,null,null,{"$f":"O57*100%/D57","v":0.36363636363636365}]
[]
[]
[]
[]
[]
[]
[]
[]
[]
[]
[]
[]
[]
[]
[]
[]
[]
[]
[]
[]
[]
[]
[]
[]
[]
[]
[]
[]
[]
[]
[]
[]
[]
[]
["CONSOLIDADO OPINIÓN RESPONSABLE DEL DISEÑO Y MEJORAMIENTO DEL PROCESO"]
[]
[null,null,null,null,null,null,null,null,"OPINIÓN SOBRE PRESENCIA Y/O FRECUENCIA DE OCURRENCIA DE LAS VARIABLES EVALUADAS"]
[null,null,null,"No. DE VARIABLES EVALUADAS","% IMPORTANCIA ASIGNADO POR DETERMINANTE",null,null,null,"SÍ, siempre",null,"Parcialmente",null,"No, nunca","No aplica","SUMA DE VARIABLES QUE OCURREN SIEMPRE O MÁS DEL 50% O, NO APLICAN",null,null,null,"% GESTIÓN DE INTERVENCIÓN SEGÚN  % DE IMPORTANCIA ASIGNADO POR DETERMINANTE",null,null,null,"%GESTIÓN DE INTERVENCIÓN GENERAL POR DETERMINANTE"]
[null,null,null,null,null,null,null,null," =o>7 horas\n>90% del tiempo"," >=4 y < 7 horas\n50% a 89% del tiempo"," >=2 y < 4 horas\n25% a 49% del tiempo"," < 2 horas\n1% a 24% del tiempo"]
["DETERMINANTE ORGANIZACIONAL",null,null,16,{"$f":"E11","v":30},null,null,null,{"$f":"COUNTIF('ANÁLISIS PARTICIPATIVO'!V9:V24,\"X\")","v":1},0,{"$f":"COUNTIF('ANÁLISIS PARTICIPATIVO'!W9:W24,\"X\")","v":9},null,{"$f":"COUNTIF('ANÁLISIS PARTICIPATIVO'!AB9:AB24,\"X\")","v":6},{"$f":"COUNTIF('ANÁLISIS PARTICIPATIVO'!AD9:AD24,\"X\")","v":0},{"$f":"SUM(I97:J97)","v":1},null,null,null,{"$f":"E97/D97*O97/100","v":1.8749999999999999E-2},null,null,null,{"$f":"O97*100%/D97","v":6.25E-2}]
["DETERMINANTE HUMANA",null,null,2,{"$f":"E12","v":10},null,null,null,{"$f":"COUNTIF('ANÁLISIS PARTICIPATIVO'!V25:V26,\"X\")","v":1},0,{"$f":"COUNTIF('ANÁLISIS PARTICIPATIVO'!W25:W26,\"X\")","v":1},null,{"$f":"COUNTIF('ANÁLISIS PARTICIPATIVO'!AB25:AB26,\"X\")","v":0},{"$f":"COUNTIF('ANÁLISIS PARTICIPATIVO'!AD25:AD26,\"X\")","v":0},{"$f":"SUM(I98:J98)","v":1},null,null,null,{"$f":"E98/D98*O98/100","v":0.05},null,null,null,{"$f":"O98*100%/D98","v":0.5}]
["DETERMINANTE TECNOLÓGICA",null,null,20,{"$f":"E13","v":30},null,null,null,{"$f":"COUNTIF('ANÁLISIS PARTICIPATIVO'!V28:V43,\"X\")","v":1},{"$f":"COUNTIF('ANÁLISIS PARTICIPATIVO'!W28:W43,\"X\")","v":0},{"$f":"COUNTIF('ANÁLISIS PARTICIPATIVO'!X28:X43,\"X\")+COUNTIF('ANÁLISIS PARTICIPATIVO'!Y28:Y43,\"X\")","v":11},null,{"$f":"COUNTIF('ANÁLISIS PARTICIPATIVO'!AB28:AB43,\"X\")","v":3},{"$f":"COUNTIF('ANÁLISIS PARTICIPATIVO'!AD28:AD43,\"X\")","v":1},{"$f":"SUM(I99:J99)","v":1},null,null,null,{"$f":"E99/D99*O99/100","v":1.4999999999999999E-2},null,null,null,{"$f":"O99*100%/D99","v":0.05}]
["DETERMINANTE AMBIENTAL",null,null,11,{"$f":"E14","v":30},null,null,null,{"$f":"COUNTIF('ANÁLISIS PARTICIPATIVO'!V44:V54,\"X\")","v":4},{"$f":"COUNTIF('ANÁLISIS PARTICIPATIVO'!W44:W54,\"X\")","v":0},{"$f":"COUNTIF('ANÁLISIS PARTICIPATIVO'!X44:X54,\"X\")+COUNTIF('ANÁLISIS PARTICIPATIVO'!Y44:Y54,\"X\")","v":6},null,{"$f":"COUNTIF('ANÁLISIS PARTICIPATIVO'!AB44:AB54,\"X\")","v":1},{"$f":"COUNTIF('ANÁLISIS PARTICIPATIVO'!AD44:AD54,\"X\")","v":0},{"$f":"SUM(I100:J100)","v":4},null,null,null,{"$f":"E100/D100*O100/100","v":0.10909090909090909},null,null,null,{"$f":"O100*100%/D100","v":0.36363636363636365}]
[]
[]
[]
[]
[]
[]
[]
[]
[]
[]
[]
[]
[]
[]
[]
[]
[]
[]
[]
[]
[]
[]
[]
[]
[]
[]
[]
[]
[]
[]
[]
[]
[]
[]
[]
["CONSOLIDADO OPINIÓN ESPECIALISTA EN ERGONOMÍA"]
[]
[null,null,null,null,null,null,null,null,"OPINIÓN SOBRE PRESENCIA Y/O FRECUENCIA DE OCURRENCIA DE LAS VARIABLES EVALUADAS"]
[null,null,null,"No. DE VARIABLES EVALUADAS","% IMPORTANCIA ASIGNADO POR DETERMINANTE",null,null,null,"Sí, siempre",null,"Parcialmente",null,"No, nunca","No aplica","SUMA DE VARIABLES QUE OCURREN SIEMPRE O MÁS DEL 50% O, NO APLICAN",null,null,null,"% GESTIÓN DE INTERVENCIÓN SEGÚN  % DE IMPORTANCIA ASIGNADO POR DETERMINANTE",null,null,null,"%GESTIÓN DE INTERVENCIÓN GENERAL POR DETERMINANTE"]
[null,null,null,null,null,null,null,null," =o>7 horas\n>90% del tiempo"," >=4 y < 7 horas\n50% a 89% del tiempo"," >=2 y < 4 horas\n25% a 49% del tiempo"," < 2 horas\n1% a 24% del tiempo"]
["DETERMINANTE ORGANIZACIONAL",null,null,16,{"$f":"E11","v":30},null,null,null,{"$f":"COUNTIF('ANÁLISIS PARTICIPATIVO'!AE9:AE24,\"X\")","v":2},0,{"$f":"COUNTIF('ANÁLISIS PARTICIPATIVO'!AF9:AF24,\"X\")","v":5},null,{"$f":"COUNTIF('ANÁLISIS PARTICIPATIVO'!AK9:AK24,\"X\")","v":9},{"$f":"COUNTIF('ANÁLISIS PARTICIPATIVO'!AM9:AM24,\"X\")","v":0},{"$f":"SUM(I141:J141)","v":2},null,null,null,{"$f":"E141/D141*O141/100","v":3.7499999999999999E-2},null,null,null,{"$f":"O141*100%/D141","v":0.125}]
["DETERMINANTE HUMANA",null,null,2,{"$f":"E12","v":10},null,null,null,{"$f":"COUNTIF('ANÁLISIS PARTICIPATIVO'!AE25:AE26,\"X\")","v":1},0,{"$f":"COUNTIF('ANÁLISIS PARTICIPATIVO'!AF25:AF26,\"X\")","v":0},null,{"$f":"COUNTIF('ANÁLISIS PARTICIPATIVO'!AK25:AK26,\"X\")","v":1},{"$f":"COUNTIF('ANÁLISIS PARTICIPATIVO'!AM25:AM26,\"X\")","v":0},{"$f":"SUM(I142:J142)","v":1},null,null,null,{"$f":"E142/D142*O142/100","v":0.05},null,null,null,{"$f":"O142*100%/D142","v":0.5}]
["DETERMINANTE TECNOLÓGICA",null,null,20,{"$f":"E13","v":30},null,null,null,{"$f":"COUNTIF('ANÁLISIS PARTICIPATIVO'!AE28:AE43,\"X\")","v":1},{"$f":"COUNTIF('ANÁLISIS PARTICIPATIVO'!AF28:AF43,\"X\")","v":0},{"$f":"COUNTIF('ANÁLISIS PARTICIPATIVO'!AG28:AG43,\"X\")+COUNTIF('ANÁLISIS PARTICIPATIVO'!AH28:AH43,\"X\")","v":6},null,{"$f":"COUNTIF('ANÁLISIS PARTICIPATIVO'!AK28:AK43,\"X\")","v":8},{"$f":"COUNTIF('ANÁLISIS PARTICIPATIVO'!AM28:AM43,\"X\")","v":1},{"$f":"SUM(I143:J143)","v":1},null,null,null,{"$f":"E143/D143*O143/100","v":1.4999999999999999E-2},null,null,null,{"$f":"O143*100%/D143","v":0.05}]
["DETERMINANTE AMBIENTAL",null,null,11,{"$f":"E14","v":30},null,null,null,{"$f":"COUNTIF('ANÁLISIS PARTICIPATIVO'!AE44:AE54,\"X\")","v":2},{"$f":"COUNTIF('ANÁLISIS PARTICIPATIVO'!AF44:AF54,\"X\")","v":0},{"$f":"COUNTIF('ANÁLISIS PARTICIPATIVO'!AG44:AG54,\"X\")+COUNTIF('ANÁLISIS PARTICIPATIVO'!AH44:AH54,\"X\")","v":7},null,{"$f":"COUNTIF('ANÁLISIS PARTICIPATIVO'!AK44:AK54,\"X\")","v":2},{"$f":"COUNTIF('ANÁLISIS PARTICIPATIVO'!AM44:AM54,\"X\")","v":0},{"$f":"SUM(I144:J144)","v":2},null,null,null,{"$f":"E144/D144*O144/100","v":5.4545454545454543E-2},null,null,null,{"$f":"O144*100%/D144","v":0.18181818181818182}]
[]
[]
[]
[]
[]
[]
[]
[]
[]
[]
[]
[]
[]
[]
[]
[]
[]
[]
[]
[]
[]
[]
[]
[]
[]
[]
[]
[]
[]
[]
[]
[]
[]
[]
[]
["CONSOLIDADO OPINIÓN PARTICIPANTES EN LA EVALUACIÓN"]
[]
[null,null,null,null,null,null,null,null,null,"%GESTIÓN DE INTERVENCIÓN GENERAL POR DETERMINANTE"]
[null,null,null,null,null,null,null,null,null,"TRABAJADOR EXPERTO","TRABAJADOR SUPERVISOR","TRABAJADOR RESPONSABLE DE DISEÑO Y MEJORAMIENTO DE PROCESOS","ESPECIALISTA EN ERGONOMÍA"]
[null,null,null,"DETERMINANTE ORGANIZACIONAL",null,null,null,null,null,{"$f":"W11","v":6.25E-2},{"$f":"W54","v":6.25E-2},{"$f":"W97","v":6.25E-2},{"$f":"W141","v":0.125}]
[null,null,null,"DETERMINANTE HUMANA",null,null,null,null,null,{"$f":"W12","v":0.5},{"$f":"W55","v":0.5},{"$f":"W98","v":0.5},{"$f":"W142","v":0.5}]
[null,null,null,"DETERMINANTE TECNOLÓGICA",null,null,null,null,null,{"$f":"W13","v":6.25E-2},{"$f":"W56","v":0.05},{"$f":"W99","v":0.05},{"$f":"W143","v":0.05}]
[null,null,null,"DETERMINANTE AMBIENTAL",null,null,null,null,null,{"$f":"W14","v":0.27272727272727271},{"$f":"W57","v":0.36363636363636365},{"$f":"W100","v":0.36363636363636365},{"$f":"W144","v":0.18181818181818182}]
[]
[]
[]
[]
[]
[]
[]
[]
[]
[]
[]
[]
[]
[]
[]
[]
[]
[]
[]
[]
[]
[]
[]
[]
[]
[]
[]
[]
[]
[]
[]
[]
[]
[]
[]
["CONCLUSIONES FINALES"]

{"sheet":"PONDERACIONES","index":6,"n_rows":1123,"n_cols":4,"rows_kept":1123,"cut":false,"hidden":true,"merged":[]}
["Municipio",null,null,"Indicadores de seguimiento plan de acción"]
["Abejorral","SI","Suficiente","Cobertura de trabajadores"]
["Abrego","NO","Regular","Cobertura de áreas"]
["Abriaquí",null,"Sin información","Reducción del grado de riesgo"]
["Acacías",null,null,"Incidencia"]
["Acandí",null,null,"Prevalencia"]
["Acevedo",null,null,"Ausentismo"]
["Achí",null,null,"Cumplimiento de actividades"]
["Agrado"]
["Agua de Dios"]
["Aguachica"]
["Aguada"]
["Aguadas"]
["Aguazul"]
["Agustín Codazzi"]
["Aipe"]
["Albán"]
["Albán"]
["Albania"]
["Albania"]
["Albania"]
["Alcalá"]
["Aldana"]
["Alejandría"]
["Algarrobo"]
["Algeciras"]
["Almaguer"]
["Almeida"]
["Alpujarra"]
["Altamira"]
["Alto Baudo"]
["Altos del Rosario"]
["Alvarado"]
["Amagá"]
["Amalfi"]
["Ambalema"]
["Anapoima"]
["Ancuyá"]
["Andalucía"]
["Andes"]
["Angelópolis"]
["Angostura"]
["Anolaima"]
["Anorí"]
["Anserma"]
["Ansermanuevo"]
["Anza"]
["Anzoátegui"]
["Apartadó"]
["Apía"]
["Apulo"]
["Aquitania"]
["Aracataca"]
["Aranzazu"]
["Aratoca"]
["Arauca"]
["Arauquita"]
["Arbeláez"]
["Arboleda"]
["Arboledas"]
["Arboletes"]
["Arcabuco"]
["Arenal"]
["Argelia"]
["Argelia"]
["Argelia"]
["Ariguaní"]
["Arjona"]
["Armenia"]
["Armenia"]
["Armero"]
["Arroyohondo"]
["Astrea"]
["Ataco"]
["Atrato"]
["Ayapel"]
["Bagadó"]
["Bahía Solano"]
["Bajo Baudó"]
["Balboa"]
["Balboa"]
["Baranoa"]
["Baraya"]
["Barbacoas"]
["Barbosa"]
["Barbosa"]
["Barichara"]
["Barranca de Upía"]
["Barrancabermeja"]
["Barrancas"]
["Barranco de Loba"]
["Barranco Minas (CD)"]
["Barranquilla"]
["Becerril"]
["Belalcázar"]
["Belén"]
["Belén"]
["Belén de Los Andaquies"]
["Belén de Umbría"]
["Bello"]
["Belmira"]
["Beltrán"]
["Berbeo"]
["Betania"]
["Betéitiva"]
["Betulia"]
["Betulia"]
["Bituima"]
["Boavita"]
["Bochalema"]
["Bogotá, D.C."]
["Bojacá"]
["Bojaya"]
["Bolívar"]
["Bolívar"]
["Bolívar"]
["Bosconia"]
["Boyacá"]
["Briceño"]
["Briceño"]
["Bucaramanga"]
["Bucarasica"]
["Buenaventura"]
["Buenavista"]
["Buenavista"]
["Buenavista"]
["Buenavista"]
["Buenos Aires"]
["Buesaco"]
["Bugalagrande"]
["Buriticá"]
["Busbanzá"]
["Cabrera"]
["Cabrera"]
["Cabuyaro"]
["Cacahual (CD)"]
["Cáceres"]
["Cachipay"]
["Cachirá"]
["Cácota"]
["Caicedo"]
["Caicedonia"]
["Caimito"]
["Cajamarca"]
["Cajibío"]
["Cajicá"]
["Calamar"]
["Calamar"]
["Calarca"]
["Caldas"]
["Caldas"]
["Caldono"]
["Cali"]
["California"]
["Calima"]
["Caloto(1)(3)"]
["Campamento"]
["Campo de La Cruz"]
["Campoalegre"]
["Campohermoso"]
["Canalete"]
["Candelaria"]
["Candelaria"]
["Cantagallo"]
["Cañasgordas"]
["Caparrapí"]
["Capitanejo"]
["Caqueza"]
["Caracolí"]
["Caramanta"]
["Carcasí"]
["Carepa"]
["Carmen de Apicalá"]
["Carmen de Carupa"]
["Carmen del Darien"]
["Carolina"]
["Cartagena"]
["Cartagena del Chairá"]
["Cartago"]
["Caruru"]
["Casabianca"]
["Castilla la Nueva"]
["Caucasia"]
["Cepitá"]
["Cereté"]
["Cerinza"]
["Cerrito"]
["Cerro San Antonio"]
["Cértegui"]
["Chachagüí"]
["Chaguaní"]
["Chalán"]
["Chameza"]
["Chaparral"]
["Charalá"]
["Charta"]
["Chía"]
["Chigorodó"]
["Chima"]
["Chimá"]
["Chimichagua"]
["Chinácota"]
["Chinavita"]
["Chinchiná"]
["Chinú"]
["Chipaque"]
["Chipatá"]
["Chiquinquirá"]
["Chíquiza"]
["Chiriguaná"]
["Chiscas"]
["Chita"]
["Chitagá"]
["Chitaraque"]
["Chivatá"]
["Chivolo"]
["Chivor"]
["Choachí"]
["Chocontá"]
["Cicuco"]
["Ciénaga"]
["Ciénaga de Oro"]
["Ciénega"]
["Cimitarra"]
["Circasia"]
["Cisneros"]
["Ciudad Bolívar"]
["Clemencia"]
["Cocorná"]
["Coello"]
["Cogua"]
["Colombia"]
["Colón"]
["Colón"]
["Coloso"]
["Cómbita"]
["Concepción"]
["Concepción"]
["Concordia"]
["Concordia"]
["Condoto"]
["Confines"]
["Consaca"]
["Contadero"]
["Contratación"]
["Convención"]
["Copacabana"]
["Coper"]
["Córdoba"]
["Córdoba"]
["Córdoba"]
["Corinto"]
["Coromoro"]
["Corozal"]
["Corrales"]
["Cota"]
["Cotorra"]
["Covarachía"]
["Coveñas"]
["Coyaima"]
["Cravo Norte"]
["Cuaspud"]
["Cubará"]
["Cubarral"]
["Cucaita"]
["Cucunubá"]
["Cúcuta"]
["Cucutilla"]
["Cuítiva"]
["Cumaral"]
["Cumaribo"]
["Cumbal"]
["Cumbitara"]
["Cunday"]
["Curillo"]
["Curití"]
["Curumaní"]
["Dabeiba"]
["Dagua"]
["Dibulla"]
["Distracción"]
["Dolores"]
["Don Matías"]
["Dosquebradas"]
["Duitama"]
["Durania"]
["Ebéjico"]
["El Águila"]
["El Bagre"]
["El Banco"]
["El Cairo"]
["El Calvario"]
["El Cantón del San Pablo"]
["El Carmen"]
["El Carmen de Atrato"]
["El Carmen de Bolívar"]
["El Carmen de Chucurí"]
["El Carmen de Viboral"]
["El Castillo"]
["El Cerrito"]
["El Charco"]
["El Cocuy"]
["El Colegio"]
["El Copey"]
["El Doncello"]
["El Dorado"]
["El Dovio"]
["El Encanto (CD)"]
["El Espino"]
["El Guacamayo"]
["El Guamo"]
["El Litoral del San Juan"]
["El Molino"]
["El Paso"]
["El Paujil"]
["El Peñol"]
["El Peñón"]
["El Peñón"]
["El Peñón"]
["El Piñon"]
["El Playón"]
["El Retén"]
["El Retorno"]
["El Roble"]
["El Rosal"]
["El Rosario"]
["El Santuario"]
["El Tablón de Gómez"]
["El Tambo"]
["El Tambo"]
["El Tarra"]
["El Zulia"]
["Elías"]
["Encino"]
["Enciso"]
["Entrerrios"]
["Envigado"]
["Espinal"]
["Facatativá"]
["Falan"]
["Filadelfia"]
["Filandia"]
["Firavitoba"]
["Flandes"]
["Florencia"]
["Florencia"]
["Floresta"]
["Florián"]
["Florida"]
["Floridablanca"]
["Fomeque"]
["Fonseca"]
["Fortul"]
["Fosca"]
["Francisco Pizarro"]
["Fredonia"]
["Fresno"]
["Frontino"]
["Fuente de Oro"]
["Fundación"]
["Funes"]
["Funza"]
["Fúquene"]
["Fusagasugá"]
["Gachala"]
["Gachancipá"]
["Gachantivá"]
["Gachetá"]
["Galán"]
["Galapa"]
["Galeras"]
["Gama"]
["Gamarra"]
["Gambita"]
["Gameza"]
["Garagoa"]
["Garzón"]
["Génova"]
["Gigante"]
["Ginebra"]
["Giraldo"]
["Girardot"]
["Girardota"]
["Girón"]
["Gómez Plata"]
["González"]
["Gramalote"]
["Granada"]
["Granada"]
["Granada"]
["Guaca"]
["Guacamayas"]
["Guacarí"]
["Guachené (1) "]
["Guachetá"]
["Guachucal"]
["Guadalajara de Buga"]
["Guadalupe"]
["Guadalupe"]
["Guadalupe"]
["Guaduas"]
["Guaitarilla"]
["Gualmatán"]
["Guamal"]
["Guamal"]
["Guamo"]
["Guapi"]
["Guapotá"]
["Guaranda"]
["Guarne"]
["Guasca"]
["Guatapé"]
["Guataquí"]
["Guatavita"]
["Guateque"]
["Guática"]
["Guavatá"]
["Guayabal de Siquima"]
["Guayabetal"]
["Guayatá"]
["Güepsa"]
["Güicán"]
["Gutiérrez"]
["Hacarí"]
["Hatillo de Loba"]
["Hato"]
["Hato Corozal"]
["Hatonuevo"]
["Heliconia"]
["Herrán"]
["Herveo"]
["Hispania"]
["Hobo"]
["Honda"]
["Ibagué"]
["Icononzo"]
["Iles"]
["Imués"]
["Inírida"]
["Inzá"]
["Ipiales"]
["Iquira"]
["Isnos"]
["Istmina"]
["Itagui"]
["Ituango"]
["Iza"]
["Jambaló"]
["Jamundí"]
["Jardín"]
["Jenesano"]
["Jericó"]
["Jericó"]
["Jerusalén"]
["Jesús María"]
["Jordán"]
["Juan de Acosta"]
["Junín"]
["Juradó"]
["La Apartada"]
["La Argentina"]
["La Belleza"]
["La Calera"]
["La Capilla"]
["La Ceja"]
["La Celia"]
["La Chorrera (CD)"]
["La Cruz"]
["La Cumbre"]
["La Dorada"]
["La Esperanza"]
["La Estrella"]
["La Florida"]
["La Gloria"]
["La Guadalupe (CD)"]
["La Jagua de Ibirico"]
["La Jagua del Pilar"]
["La Llanada"]
["La Macarena"]
["La Merced"]
["La Mesa"]
["La Montañita"]
["La Palma"]
["La Paz"]
["La Paz"]
["La Pedrera (CD)"]
["La Peña"]
["La Pintada"]
["La Plata"]
["La Playa"]
["La Primavera"]
["La Salina"]
["La Sierra"]
["La Tebaida"]
["La Tola"]
["La Unión"]
["La Unión"]
["La Unión"]
["La Unión"]
["La Uvita"]
["La Vega"]
["La Vega"]
["La Victoria"]
["La Victoria"]
["La Victoria (CD)"]
["La Virginia"]
["Labateca"]
["Labranzagrande"]
["Landázuri"]
["Lebríja"]
["Leguízamo"]
["Leiva"]
["Lejanías"]
["Lenguazaque"]
["Lérida"]
["Leticia"]
["Líbano"]
["Liborina"]
["Linares"]
["Lloró"]
["López"]
["Lorica"]
["Los Andes"]
["Los Córdobas"]
["Los Palmitos"]
["Los Patios"]
["Los Santos"]
["Lourdes"]
["Luruaco"]
["Macanal"]
["Macaravita"]
["Maceo"]
["Macheta"]
["Madrid"]
["Magangué"]
["Magüi"]
["Mahates"]
["Maicao"]
["Majagual"]
["Málaga"]
["Malambo"]
["Mallama"]
["Manatí"]
["Manaure"]
["Manaure"]
["Maní"]
["Manizales"]
["Manta"]
["Manzanares"]
["Mapiripán"]
["Mapiripana (CD)"]
["Margarita"]
["María La Baja"]
["Marinilla"]
["Maripí"]
["Mariquita"]
["Marmato"]
["Marquetalia"]
["Marsella"]
["Marulanda"]
["Matanza"]
["Medellín"]
["Medina"]
["Medio Atrato"]
["Medio Baudó"]
["Medio San Juan"]
["Melgar"]
["Mercaderes"]
["Mesetas"]
["Milán"]
["Miraflores"]
["Miraflores"]
["Miranda"]
["Miriti - Paraná (CD)"]
["Mistrató"]
["Mitú"]
["Mocoa"]
["Mogotes"]
["Molagavita"]
["Momil"]
["Mompós"]
["Mongua"]
["Monguí"]
["Moniquirá"]
["Montebello"]
["Montecristo"]
["Montelíbano(1)(3)"]
["Montenegro"]
["Montería"]
["Monterrey"]
["Moñitos"]
["Morales"]
["Morales"]
["Morelia"]
["Morichal (CD)"]
["Morroa"]
["Mosquera"]
["Mosquera"]
["Motavita"]
["Murillo"]
["Murindó"]
["Mutatá"]
["Mutiscua"]
["Muzo"]
["Nariño"]
["Nariño"]
["Nariño"]
["Nátaga"]
["Natagaima"]
["Nechí"]
["Necoclí"]
["Neira"]
["Neiva"]
["Nemocón"]
["Nilo"]
["Nimaima"]
["Nobsa"]
["Nocaima"]
["Norcasia"]
["Norosí (1)"]
["Nóvita"]
["Nueva Granada"]
["Nuevo Colón"]
["Nunchía"]
["Nuquí"]
["Obando"]
["Ocamonte"]
["Ocaña"]
["Oiba"]
["Oicatá"]
["Olaya"]
["Olaya Herrera"]
["Onzaga"]
["Oporapa"]
["Orito"]
["Orocué"]
["Ortega"]
["Ospina"]
["Otanche"]
["Ovejas"]
["Pachavita"]
["Pacho"]
["Pacoa (CD)"]
["Pácora"]
["Padilla"]
["Paez"]
["Páez"]
["Paicol"]
["Pailitas"]
["Paime"]
["Paipa"]
["Pajarito"]
["Palermo"]
["Palestina"]
["Palestina"]
["Palmar"]
["Palmar de Varela"]
["Palmas del Socorro"]
["Palmira"]
["Palmito"]
["Palocabildo"]
["Pamplona"]
["Pamplonita"]
["Pana Pana (CD)"]
["Pandi"]
["Panqueba"]
["Papunaua (CD)"]
["Páramo"]
["Paratebueno"]
["Pasca"]
["Pasto"]
["Patía"]
["Pauna"]
["Paya"]
["Paz de Ariporo"]
["Paz de Río"]
["Pedraza"]
["Pelaya"]
["Pensilvania"]
["Peñol"]
["Peque"]
["Pereira"]
["Pesca"]
["Piamonte"]
["Piedecuesta"]
["Piedras"]
["Piendamó"]
["Pijao"]
["Pijiño del Carmen"]
["Pinchote"]
["Pinillos"]
["Piojó"]
["Pisba"]
["Pital"]
["Pitalito"]
["Pivijay"]
["Planadas"]
["Planeta Rica"]
["Plato"]
["Policarpa"]
["Polonuevo"]
["Ponedera"]
["Popayán"]
["Pore"]
["Potosí"]
["Pradera"]
["Prado"]
["Providencia"]
["Providencia"]
["Pueblo Bello"]
["Pueblo Nuevo"]
["Pueblo Rico"]
["Pueblorrico"]
["Puebloviejo"]
["Puente Nacional"]
["Puerres"]
["Puerto Alegría (CD)"]
["Puerto Arica (CD)"]
["Puerto Asís"]
["Puerto Berrío"]
["Puerto Boyacá"]
["Puerto Caicedo"]
["Puerto Carreño"]
["Puerto Colombia"]
["Puerto Colombia (CD)"]
["Puerto Concordia"]
["Puerto Escondido"]
["Puerto Gaitán"]
["Puerto Guzmán"]
["Puerto Libertador"]
["Puerto Lleras"]
["Puerto López"]
["Puerto Nare"]
["Puerto Nariño"]
["Puerto Parra"]
["Puerto Rico"]
["Puerto Rico"]
["Puerto Rondón"]
["Puerto Salgar"]
["Puerto Santander"]
["Puerto Santander (CD)"]
["Puerto Tejada"]
["Puerto Triunfo"]
["Puerto Wilches"]
["Pulí"]
["Pupiales"]
["Puracé"]
["Purificación"]
["Purísima"]
["Quebradanegra"]
["Quetame"]
["Quibdó"]
["Quimbaya"]
["Quinchía"]
["Quípama"]
["Quipile"]
["Ragonvalia"]
["Ramiriquí"]
["Ráquira"]
["Recetor"]
["Regidor"]
["Remedios"]
["Remolino"]
["Repelón"]
["Restrepo"]
["Restrepo"]
["Retiro"]
["Ricaurte"]
["Ricaurte"]
["Río de Oro"]
["Río Iro"]
["Río Quito"]
["Río Viejo (1)(3)"]
["Rioblanco"]
["Riofrío"]
["Riohacha"]
["Rionegro"]
["Rionegro"]
["Riosucio"]
["Riosucio(2)"]
["Risaralda"]
["Rivera"]
["Roberto Payán"]
["Roldanillo"]
["Roncesvalles"]
["Rondón"]
["Rosas"]
["Rovira"]
["Sabana de Torres"]
["Sabanagrande"]
["Sabanalarga"]
["Sabanalarga"]
["Sabanalarga"]
["Sabanas de San Angel"]
["Sabaneta"]
["Saboyá"]
["Sácama"]
["Sáchica"]
["Sahagún"]
["Saladoblanco"]
["Salamina"]
["Salamina"]
["Salazar"]
["Saldaña"]
["Salento"]
["Salgar"]
["Samacá"]
["Samaná"]
["Samaniego"]
["Sampués"]
["San Agustín"]
["San Alberto"]
["San Andrés"]
["San Andrés"]
["San Andrés de Cuerquía"]
["San Andres de Tumaco"]
["San Andrés Sotavento (1) (3)"]
["San Antero"]
["San Antonio"]
["San Antonio del Tequendama"]
["San Benito"]
["San Benito Abad"]
["San Bernardo"]
["San Bernardo"]
["San Bernardo del Viento"]
["San Calixto"]
["San Carlos"]
["San Carlos"]
["San Carlos de Guaroa"]
["San Cayetano"]
["San Cayetano"]
["San Cristóbal"]
["San Diego"]
["San Eduardo"]
["San Estanislao"]
["San Felipe (CD)"]
["San Fernando"]
["San Francisco"]
["San Francisco"]
["San Francisco"]
["San Gil"]
["San Jacinto"]
["San Jacinto del Cauca"]
["San Jerónimo"]
["San Joaquín"]
["San José"]
["San José de La Montaña"]
["San José de Miranda"]
["San José de Pare"]
["San José de Uré(1)"]
["San José del Fragua"]
["San José del Guaviare"]
["San José del Palmar"]
["San Juan de Arama"]
["San Juan de Betulia"]
["San Juan de Río Seco"]
["San Juan de Urabá"]
["San Juan del Cesar"]
["San Juan Nepomuceno"]
["San Juanito"]
["San Lorenzo"]
["San Luis"]
["San Luis"]
["San Luis de Gaceno"]
["San Luis de Palenque"]
["San Luis de Sincé"]
["San Marcos"]
["San Martín"]
["San Martín"]
["San Martín de Loba"]
["San Mateo"]
["San Miguel"]
["San Miguel"]
["San Miguel de Sema"]
["San Onofre"]
["San Pablo"]
["San Pablo"]
["San Pablo de Borbur"]
["San Pedro"]
["San Pedro"]
["San Pedro"]
["San Pedro de Cartago"]
["San Pedro de Uraba"]
["San Pelayo"]
["San Rafael"]
["San Roque"]
["San Sebastián"]
["San Sebastián de Buenavista"]
["San Vicente"]
["San Vicente de Chucurí"]
["San Vicente del Caguán"]
["San Zenón"]
["Sandoná"]
["Santa Ana"]
["Santa Bárbara"]
["Santa Bárbara"]
["Santa Bárbara"]
["Santa Bárbara de Pinto"]
["Santa Catalina"]
["Santa Helena del Opón"]
["Santa Isabel"]
["Santa Lucía"]
["Santa María"]
["Santa María"]
["Santa Marta"]
["Santa Rosa"]
["Santa Rosa"]
["Santa Rosa de Cabal"]
["Santa Rosa de Osos"]
["Santa Rosa de Viterbo"]
["Santa Rosa del Sur"]
["Santa Rosalía"]
["Santa Sofía"]
["Santacruz"]
["Santafé de Antioquia"]
["Santana"]
["Santander de Quilichao"]
["Santiago"]
["Santiago"]
["Santiago de Tolú"]
["Santo Domingo"]
["Santo Tomás"]
["Santuario"]
["Sapuyes"]
["Saravena"]
["Sardinata"]
["Sasaima"]
["Sativanorte"]
["Sativasur"]
["Segovia"]
["Sesquilé"]
["Sevilla"]
["Siachoque"]
["Sibaté"]
["Sibundoy"]
["Silos"]
["Silvania"]
["Silvia"]
["Simacota"]
["Simijaca"]
["Simití"]
["Sincelejo"]
["Sipí"]
["Sitionuevo"]
["Soacha"]
["Soatá"]
["Socha"]
["Socorro"]
["Socotá"]
["Sogamoso"]
["Solano"]
["Soledad"]
["Solita"]
["Somondoco"]
["Sonson"]
["Sopetrán"]
["Soplaviento"]
["Sopó"]
["Sora"]
["Soracá"]
["Sotaquirá"]
["Sotara"]
["Suaita"]
["Suan"]
["Suárez"]
["Suárez"]
["Suaza"]
["Subachoque"]
["Sucre"]
["Sucre"]
["Sucre"]
["Suesca"]
["Supatá"]
["Supía"]
["Suratá"]
["Susa"]
["Susacón"]
["Sutamarchán"]
["Sutatausa"]
["Sutatenza"]
["Tabio"]
["Tadó"]
["Talaigua Nuevo"]
["Tamalameque"]
["Támara"]
["Tame"]
["Támesis"]
["Taminango"]
["Tangua"]
["Taraira"]
["Tarapacá (CD)"]
["Tarazá"]
["Tarqui"]
["Tarso"]
["Tasco"]
["Tauramena"]
["Tausa"]
["Tello"]
["Tena"]
["Tenerife"]
["Tenjo"]
["Tenza"]
["Teorama"]
["Teruel"]
["Tesalia"]
["Tibacuy"]
["Tibaná"]
["Tibasosa"]
["Tibirita"]
["Tibú"]
["Tierralta"]
["Timaná"]
["Timbío"]
["Timbiquí"]
["Tinjacá"]
["Tipacoque"]
["Tiquisio"]
["Titiribí"]
["Toca"]
["Tocaima"]
["Tocancipá"]
["Togüí"]
["Toledo"]
["Toledo"]
["Tolú Viejo"]
["Tona"]
["Tópaga"]
["Topaipí"]
["Toribio"]
["Toro"]
["Tota"]
["Totoró"]
["Trinidad"]
["Trujillo"]
["Tubará"]
["Tuchín (1)"]
["Tuluá"]
["Tunja"]
["Tununguá"]
["Túquerres"]
["Turbaco"]
["Turbaná"]
["Turbo"]
["Turmequé"]
["Tuta"]
["Tutazá"]
["Ubalá"]
["Ubaque"]
["Ulloa"]
["Umbita"]
["Une"]
["Unguía"]
["Unión Panamericana"]
["Uramita"]
["Uribe"]
["Uribia"]
["Urrao"]
["Urumita"]
["Usiacurí"]
["Útica"]
["Valdivia"]
["Valencia"]
["Valle de San José"]
["Valle de San Juan"]
["Valle del Guamuez"]
["Valledupar"]
["Valparaíso"]
["Valparaíso"]
["Vegachí"]
["Vélez"]
["Venadillo"]
["Venecia"]
["Venecia"]
["Ventaquemada"]
["Vergara"]
["Versalles"]
["Vetas"]
["Vianí"]
["Victoria"]
["Vigía del Fuerte"]
["Vijes"]
["Villa Caro"]
["Villa de Leyva"]
["Villa de San Diego de Ubate"]
["Villa del Rosario"]
["Villa Rica"]
["Villagarzón"]
["Villagómez"]
["Villahermosa"]
["Villamaría"]
["Villanueva"]
["Villanueva"]
["Villanueva"]
["Villanueva"]
["Villapinzón"]
["Villarrica"]
["Villavicencio"]
["Villavieja"]
["Villeta"]
["Viotá"]
["Viracachá"]
["Vistahermosa"]
["Viterbo"]
["Yacopí"]
["Yacuanquer"]
["Yaguará"]
["Yalí"]
["Yarumal"]
["Yavaraté (CD)"]
["Yolombó"]
["Yondó"]
["Yopal"]
["Yotoco"]
["Yumbo"]
["Zambrano"]
["Zapatoca"]
["Zapayán"]
["Zaragoza"]
["Zarzal"]
["Zetaquira"]
["Zipacón"]
["Zipaquirá"]
["Zona Bananera"]

{"sheet":"PLAN DE ACCIÓN","index":7,"n_rows":7,"n_cols":9,"rows_kept":7,"cut":false,"hidden":false,"merged":[[1,0,1,8]]}
[]
["Herramienta de Evaluación Profunda\nPlan de acción"]
[]
[]
[]
["Estrategias avaladas para plan de acción","Prioridad de la aplicación","Responsable (s)","Cargo \nResponsable (s)","Fecha de inicio  implementación\n(dd/mm/aaaa)","Fecha de finalización de la implementación\n(dd/mm/aaaa)","Indicadores de seguimiento","Resultado Meta","Fecha de seguimiento\n(dd/mm/aaaa)"]
["Total general"]

{"sheet":"FORMATO DE CAMPO","index":8,"n_rows":54,"n_cols":44,"rows_kept":54,"cut":false,"hidden":false,"merged":[[7,4,7,6],[7,13,7,15],[7,22,7,24],[7,31,7,33],[0,0,0,39],[1,0,1,43],[3,0,3,2],[3,3,3,12],[3,14,3,22],[3,23,3,36],[3,41,3,43],[5,3,5,29],[5,30,6,38],[6,3,6,11],[6,12,6,20],[6,21,6,29],[9,22,9,24],[9,31,9,33],[10,4,10,6],[10,13,10,15],[10,22,10,24],[10,31,10,33],[11,31,11,33],[12,4,12,6],[12,13,12,15],[12,22,12,24],[12,31,12,33],[11,4,11,6],[11,13,11,15],[11,22,11,24],[13,4,13,6],[13,13,13,15],[13,22,13,24],[13,31,13,33],[14,4,14,6],[14,13,14,15],[14,22,14,24],[14,31,14,33],[15,4,15,6],[15,13,15,15],[15,22,15,24],[15,31,15,33],[16,4,16,6],[16,13,16,15],[16,22,16,24],[16,31,16,33],[17,4,17,6],[17,13,17,15],[17,22,17,24],[17,31,17,33],[18,4,18,6],[18,13,18,15],[18,22,18,24],[18,31,18,33],[19,4,19,6],[19,13,19,15],[19,22,19,24],[19,31,19,33],[20,4,20,6],[20,13,20,15],[20,22,20,24],[20,31,20,33],[21,4,21,6],[21,13,21,15],[21,22,21,24],[21,31,21,33],[22,4,22,6],[22,13,22,15],[22,22,22,24],[22,31,22,33],[25,22,25,24],[25,31,25,33],[27,0,42,0],[23,4,23,6],[23,13,23,15],[23,22,23,24],[23,31,23,33],[24,22,24,24],[24,31,24,33],[8,0,23,0],[8,4,8,6],[8,13,8,15],[8,22,8,24],[8,31,8,33],[9,4,9,6],[9,13,9,15],[43,0,53,0],[24,0,25,0],[24,4,24,6],[24,13,24,15],[25,4,25,6],[25,13,25,15]]}
[]
["Herramienta de Evaluación Profunda\nAnálisis Participativo"]
[]
["Razón social",null,null,null,null,null,null,null,null,null,null,null,null,null,"Nombre de la tarea crítica por  movilización manual de pacientes",null,null,null,null,null,null,null,null,null,null,null,null,null,null,null,null,null,null,null,null,null,null,null,null,null,"Nombre del proceso crítico"]
[]
[null,null,null,"ACTORES DE LA TAREA",null,null,null,null,null,null,null,null,null,null,null,null,null,null,null,null,null,null,null,null,null,null,null,null,null,null,"ESPECIALISTA EN ERGONOMÍA"]
[null,null,null,"TRABAJADOR EXPERTO",null,null,null,null,null,null,null,null,"SUPERVISOR O JEFE",null,null,null,null,null,null,null,null,"RESPONSABLE DISEÑO Y MEJORAMIENTO DEL PROCESO"]
[null,null,"VARIABLES A EVALUAR","SÍ, siempre","Parcialmente",null,null,null,null,"No, nunca",null,"No aplica","SÍ, siempre","Parcialmente",null,null,null,null,"No, nunca",null,"No aplica","SÍ, siempre","Parcialmente",null,null,null,null,"No, nunca",null,"No aplica","SÍ, siempre","Parcialmente",null,null,null,null,"No, nunca",null,"No aplica","TOTAL","OBSERVACIONES Y CONCLUSIONES",null,"ESTRATEGIAS DE INTERVENCIÓN SUGERIDAS POR ACTORES DE LA TAREA","ESTRATEGIAS DE INTERVENCIÓN SUGERIDAS POR ESPECIALISTA EN ERGONOMÍA"]
["DETERMINANTE ORGANIZACIONAL",1,"Hay una política de Seguridad y Salud en el trabajo, que se ve reflejada en la asignación de recursos para las intervenciones dirigidas a mitigar la problemática por MMP",null,null,null,null,null,null,null,null,null,null,null,null,null,null,null,null,null,null,null,null,null,null,null,null,null,null,null,null,null,null,null,null,null,null,null,null,{"$f":"H9+I9+K9+Q9+R9+T9+Z9+AA9+AC9+AI9+AJ9+AL9","v":0}]
[null,2,"Se mantiene actualizada (últimos 6 meses) la información para la vigilancia de las condiciones de salud músculo esquelética de los trabajadores  expuestos y de las condiciones de trabajo en donde se ejecutan tareas de MMP",null,null,null,null,null,null,null,null,null,null,null,null,null,null,null,null,null,null,null,null,null,null,null,null,null,null,null,null,null,null,null,null,null,null,null,null,{"$f":"H10+I10+K10+Q10+R10+T10+Z10+AA10+AC10+AI10+AJ10+AL10","v":0}]
[null,3,"Se realizan exámenes médicos ocupacionales con énfasis en evaluación clínica de los desórdenes músculo esqueléticos de columna, miembros superiores e inferiores.",null,null,null,null,null,null,null,null,null,null,null,null,null,null,null,null,null,null,null,null,null,null,null,null,null,null,null,null,null,null,null,null,null,null,null,null,0]
[null,4,"Se realizan evaluaciones de las cualidades físicas (fuerza, flexibilidad, resistencia cardiovascular) ",null,null,null,null,null,null,null,null,null,null,null,null,null,null,null,null,null,null,null,null,null,null,null,null,null,null,null,null,null,null,null,null,null,null,null,null,0]
[null,5,"La  asignación de enfermeras (auxiliares y jefes)  en la unidad o piso es suficiente y/o se ajusta al numero de pacientes, teniendo en cuenta las características funcionales y necesidad de asistencia que requieren los pacientes",null,null,null,null,null,null,null,null,null,null,null,null,null,null,null,null,null,null,null,null,null,null,null,null,null,null,null,null,null,null,null,null,null,null,null,null,0]
[null,6,"La asignación de pacientes permite la alternancia en la atención de usuarios con limitaciones funcionales elevadas y usuarios  funcionales que no demandan asistencia para su movilización, permitiendo la recuperación física de los expuestos.\n\n",null,null,null,null,null,null,null,null,null,null,null,null,null,null,null,null,null,null,null,null,null,null,null,null,null,null,null,null,null,null,null,null,null,null,null,null,0]
[null,7,"\n\nExiste planeación para suministrar y utilizar, prioritaria y equitativamente las ayudas mecánicas (camillas, sillas de ruedas, grúas, rollos de movilización) en el piso o unidad",null,null,null,null,null,null,null,null,null,null,null,null,null,null,null,null,null,null,null,null,null,null,null,null,null,null,null,null,null,null,null,null,null,null,null,null,0]
[null,8,"Existe un programa de mantenimiento predictivo y/o preventivo que garantice el  adecuado  funcionamiento de las ayudas mecánicas",null,null,null,null,null,null,null,null,null,null,null,null,null,null,null,null,null,null,null,null,null,null,null,null,null,null,null,null,null,null,null,null,null,null,null,null,0]
[null,9,"Se documentan requerimientos ergonómicos en los procedimientos de selección y adquisición de ayudas mecánicas (camas, sillas de ruedas, camillas, rollos de movilización), teniendo en cuenta las necesidades de movilización de pacientes con diferentes caracteristicas de funcionalidad e independencia.",null,null,null,null,null,null,null,null,null,null,null,null,null,null,null,null,null,null,null,null,null,null,null,null,null,null,null,null,null,null,null,null,null,null,null,null,0]
[null,10,"Existen procedimientos para estimar  las necesidades de ayudas mecánicas y trabajo en equipo durante la movilización de pacientes",null,null,null,null,null,null,null,null,null,null,null,null,null,null,null,null,null,null,null,null,null,null,null,null,null,null,null,null,null,null,null,null,null,null,null,null,0]
[null,11,"Los  jefes de área (unidad o piso) conocen los procedimientos seguros para la  MMP y velan por su cumplimiento",null,null,null,null,null,null,null,null,null,null,null,null,null,null,null,null,null,null,null,null,null,null,null,null,null,null,null,null,null,null,null,null,null,null,null,null,0]
[null,12," La asignación del número de pacientes por enfermera, permite la colaboración  entre  el grupo de trabajo asignado al piso o unidad",null,null,null,null,null,null,null,null,null,null,null,null,null,null,null,null,null,null,null,null,null,null,null,null,null,null,null,null,null,null,null,null,null,null,null,null,0]
[null,13,"La tarea es ejecutada por personal de contratación directa",null,null,null,null,null,null,null,null,null,null,null,null,null,null,null,null,null,null,null,null,null,null,null,null,null,null,null,null,null,null,null,null,null,null,null,null,0]
[null,14,"Se implementa un programa de formación en prevención de DME y AT por MMP",null,null,null,null,null,null,null,null,null,null,null,null,null,null,null,null,null,null,null,null,null,null,null,null,null,null,null,null,null,null,null,null,null,null,null,null,0]
[null,15,"Se cuenta con un perfil ocupacional específico para la  selección de la población que realiza atención de pacientes que requieren asistencia (transferencia, movilización, baño, vestido, etc)",null,null,null,null,null,null,null,null,null,null,null,null,null,null,null,null,null,null,null,null,null,null,null,null,null,null,null,null,null,null,null,null,null,null,null,null,0]
[null,16,"Las mujeres en estado de embarazo ejecutan actividades con ausencia o muy baja exigencia de MMP",null,null,null,null,null,null,null,null,null,null,null,null,null,null,null,null,null,null,null,null,null,null,null,null,null,null,null,null,null,null,null,null,null,null,null,null,0]
["DETERMINANTE HUMANA",17,"Los trabajadores demuestran estar entrenados y poseer conocimiento suficiente para desempeñar de forma segura la MMP",null,null,null,null,null,null,null,null,null,null,null,null,null,null,null,null,null,null,null,null,null,null,null,null,null,null,null,null,null,null,null,null,null,null,null,null,0]
[null,18,"Se evidencia la planificación y trabajo en equipo  entre el personal  del piso o Unidad para realizar tareas de MMP",null,null,null,null,null,null,null,null,null,null,null,null,null,null,null,null,null,null,null,null,null,null,null,null,null,null,null,null,null,null,null,null,null,null,null,null,0]
[null,null,null," =o>7 horas\n>90% del tiempo"," >=4 y < 7 horas\n50% a 89% del tiempo"," >=2 y < 4 horas\n25% a 49% del tiempo"," < 2 horas\n1% a 24% del tiempo",null,null,"No, nunca",null,"No aplica"," =o>7 horas\n>90% del tiempo"," >=4 y < 7 horas\n50% a 89% del tiempo"," >=2 y < 4 horas\n25% a 49% del tiempo"," < 2 horas\n1% a 24% del tiempo",null,null,"No, nunca",null,"No aplica"," =o>7 horas\n>90% del tiempo"," >=4 y < 7 horas\n50% a 89% del tiempo"," >=2 y < 4 horas\n25% a 49% del tiempo"," < 2 horas\n1% a 24% del tiempo",null,null,"No, nunca",null,"No aplica"," =o>7 horas\n>90% del tiempo"," >=4 y < 7 horas\n50% a 89% del tiempo"," >=2 y < 4 horas\n25% a 49% del tiempo"," < 2 horas\n1% a 24% del tiempo",null,null,"No, nunca",null,"No aplica","TOTAL"]
["DETERMINANTE TECNOLÓGICA",19,"Las ayudas mecánicas para la MMP ( sillas de ruedas, sillas pato,  camillas) asignadas al piso o Unidad son suficientes para los requerimientos que se tienen",null,null,null,null,null,null,null,null,null,null,null,null,null,null,null,null,null,null,null,null,null,null,null,null,null,null,null,null,null,null,null,null,null,null,null,null,{"$f":"H28+I28+K28+Q28+R28+T28+Z28+AA28+AC28+AI28+AJ28+AL28","v":0}]
[null,20,"Las camas y  camillas presentan sistemas de regulación que permiten al personal adaptar la altura durante la MMP ",null,null,null,null,null,null,null,null,null,null,null,null,null,null,null,null,null,null,null,null,null,null,null,null,null,null,null,null,null,null,null,null,null,null,null,null,0]
[null,21,"Las camas y camillas tienen dispositivos mecánicos en buen estado  que permiten regular la inclinación de la cabecera según la necesidad del paciente y  conveniencia del personal",null,null,null,null,null,null,null,null,null,null,null,null,null,null,null,null,null,null,null,null,null,null,null,null,null,null,null,null,null,null,null,null,null,null,null,null,0]
[null,22,"La ubicación de la cama en las habitaciones permite espacio suficiente para que el personal pueda ubicarse correctamente, evitar giros de tronco >45° y  permite el movimiento del cuerpo en bloque",null,null,null,null,null,null,null,null,null,null,null,null,null,null,null,null,null,null,null,null,null,null,null,null,null,null,null,null,null,null,null,null,null,null,null,null,0]
[null,23,"La  dimensión de camas y camillas  permiten la adecuada alineación postural de la columna y miembros superiores  durante la movilización y asistencia al paciente ",null,null,null,null,null,null,null,null,null,null,null,null,null,null,null,null,null,null,null,null,null,null,null,null,null,null,null,null,null,null,null,null,null,null,null,null,0]
[null,24,"Las barandas de las camas y  camillas se pueden retirar o ajustar con el fin de facilitar la movilización y transferencia del paciente. ",null,null,null,null,null,null,null,null,null,null,null,null,null,null,null,null,null,null,null,null,null,null,null,null,null,null,null,null,null,null,null,null,null,null,null,null,0]
[null,25,"Existen dispositivos o mecanismos (agarraderas suspendidas al techo, botones para inclinar la cama, subir o baja barandas) para que los pacientes puedan ayudarse durante su movilización y transferencia",null,null,null,null,null,null,null,null,null,null,null,null,null,null,null,null,null,null,null,null,null,null,null,null,null,null,null,null,null,null,null,null,null,null,null,null,0]
[null,26,"La camas y camillas son fáciles de empujar  y ubicar según las características locativas del área",null,null,null,null,null,null,null,null,null,null,null,null,null,null,null,null,null,null,null,null,null,null,null,null,null,null,null,null,null,null,null,null,null,null,null,null,0]
[null,27,"La sillas de ruedas  (o sillas pato) son fáciles de empujar y ubicar según las características físicas y espacios del área ",null,null,null,null,null,null,null,null,null,null,null,null,null,null,null,null,null,null,null,null,null,null,null,null,null,null,null,null,null,null,null,null,null,null,null,null,0]
[null,28,"La dimensión (ancho) de las  sillas de ruedas  o sillas pato  permiten que el  paciente se siente o levante fácilmente",null,null,null,null,null,null,null,null,null,null,null,null,null,null,null,null,null,null,null,null,null,null,null,null,null,null,null,null,null,null,null,null,null,null,null,null,0]
[null,29,"La silla de ruedas permite retirar o desarmar los apoyapiés y otros dispositivos como correas de ajuste, con el fin de permitir el ingreso adecuado del personal que realiza la MMP",null,null,null,null,null,null,null,null,null,null,null,null,null,null,null,null,null,null,null,null,null,null,null,null,null,null,null,null,null,null,null,null,null,null,null,null,0]
[null,30,"Cuentan con grúas para el levantamiento de pacientes con necesidades especiales y dependientes para movilizarse",null,null,null,null,null,null,null,null,null,null,null,null,null,null,null,null,null,null,null,null,null,null,null,null,null,null,null,null,null,null,null,null,null,null,null,null,0]
[null,31,"Las grúas de levantamiento  presentan tamaños acordes con los espacios físicos de las instalaciones y sistemas de ajustabilidad horizontal y vertical , facilitando la maniobrabilidad y ubicación del paciente",null,null,null,null,null,null,null,null,null,null,null,null,null,null,null,null,null,null,null,null,null,null,null,null,null,null,null,null,null,null,null,null,null,null,null,null,0]
[null,32,"Las ayudas mecánicas rodantes (camas,  sillas pato) tienen agarraderas ergonomicas que permitan empujarlas facilmente",null,null,null,null,null,null,null,null,null,null,null,null,null,null,null,null,null,null,null,null,null,null,null,null,null,null,null,null,null,null,null,null,null,null,null,null,0]
[null,33,"El piso o Unidad cuenta con suficientes rodillos y tablas para la  movilización de pacientes ",null,null,null,null,null,null,null,null,null,null,null,null,null,null,null,null,null,null,null,null,null,null,null,null,null,null,null,null,null,null,null,null,null,null,null,null,0]
[null,34,"\n\nLos sistemas de ajustabilidad y freno de las ayudas mecánicas se encuentran en adecuado estado de mantenimiento\n",null,null,null,null,null,null,null,null,null,null,null,null,null,null,null,null,null,null,null,null,null,null,null,null,null,null,null,null,null,null,null,null,null,null,null,null,0]
["DETERMINANTE AMBIENTAL",39,"Los espacios físicos (corredores, salas de imágenes diagnosticas, etc.)  donde se realiza la MMP con uso de ayudas mecánicas son amplios y libres de obstáculos",null,null,null,null,null,null,null,null,null,null,null,null,null,null,null,null,null,null,null,null,null,null,null,null,null,null,null,null,null,null,null,null,null,null,null,null,0]
[null,40,"Los baños (duchas, inodoros y lavamanos)  permiten el ingreso fácil del paciente cuando esta siendo movilizado en la silla pato , así como de otros aditamentos (caminador)",null,null,null,null,null,null,null,null,null,null,null,null,null,null,null,null,null,null,null,null,null,null,null,null,null,null,null,null,null,null,null,null,null,null,null,null,0]
[null,41,"Los baños (duchas, inodoro ,lavamanos)  cuentan con elementos de asimiento (barras) que les permite agarrarse y apoyarse, facilitando la MMP",null,null,null,null,null,null,null,null,null,null,null,null,null,null,null,null,null,null,null,null,null,null,null,null,null,null,null,null,null,null,null,null,null,null,null,null,0]
[null,42,"El diámetro de las puertas permite la accesibilidad adecuada de las ayudas mecánicas ( grúa, cama, silla de ruedas, camilla)",null,null,null,null,null,null,null,null,null,null,null,null,null,null,null,null,null,null,null,null,null,null,null,null,null,null,null,null,null,null,null,null,null,null,null,null,0]
[null,43,"La altura de los inodoros cuenta con la medida ergonómica recomendada (55 cm), en beneficio de la accesibilidad durante la MMP",null,null,null,null,null,null,null,null,null,null,null,null,null,null,null,null,null,null,null,null,null,null,null,null,null,null,null,null,null,null,null,null,null,null,null,null,0]
[null,44,"Las duchas son móviles y cuentan con bandeja o silla para sentar al paciente.",null,null,null,null,null,null,null,null,null,null,null,null,null,null,null,null,null,null,null,null,null,null,null,null,null,null,null,null,null,null,null,null,null,null,null,null,0]
[null,45,"Los pisos de los baños donde se realiza la asistencia a los pacientes son antideslizantes, sin cambios de nivel y   permite realizar la MMP bajo condiciones de seguridad. ",null,null,null,null,null,null,null,null,null,null,null,null,null,null,null,null,null,null,null,null,null,null,null,null,null,null,null,null,null,null,null,null,null,null,null,null,0]
[null,46,"Los pisos de las instalaciones físicas de los diferentes unidades son antideslizantes , sin cambios de nivel y permite realizar la MMP bajo condiciones de seguridad",null,null,null,null,null,null,null,null,null,null,null,null,null,null,null,null,null,null,null,null,null,null,null,null,null,null,null,null,null,null,null,null,null,null,null,null,0]
[null,47,"Los espacios que necesariamente presentan cambios de nivel (entrada y salida a ascensores, rampas)  se mantienen debidamente demarcados, libres de obstáculos, con anchos y largos suficientes, así como pendientes que responden a la fórmula (desnivel x 100 / 10%)",null,null,null,null,null,null,null,null,null,null,null,null,null,null,null,null,null,null,null,null,null,null,null,null,null,null,null,null,null,null,null,null,null,null,null,null,0]
[null,48,"La altura de las sillas de estar o descanso  donde se sientan los pacientes cuentan con la medida ergonómica recomendada (55 cms)",null,null,null,null,null,null,null,null,null,null,null,null,null,null,null,null,null,null,null,null,null,null,null,null,null,null,null,null,null,null,null,null,null,null,null,null,0]
[null,49,"Las condiciones de iluminación general favorecen la visibilidad durante la MMP",null,null,null,null,null,null,null,null,null,null,null,null,null,null,null,null,null,null,null,null,null,null,null,null,null,null,null,null,null,null,null,null,null,null,null,null,0]